Cogmind - Beta 16 @@@ ROGUE MODE // 2025.12.21 @ 00:20:02 Player: Skysub Result: Destroyed by G-73 Enforcer with Heavy Laser Performance ------------- Evolutions (9) 4500 Regions Visited (28) 5600 Robots Destroyed (328) 1640 Value Destroyed (22438) 22438 Prototype IDs (48) 960 Alien Tech Used (0) 0 Bonus (29740) 29740 TOTAL SCORE: 64878 Bonus ------- Triggered High Security 2000 High Alert Combat Kills 6757 Follower Combat Kills 11784 Entered Garrisons 2000 Used RIF Installer 6500 Aligned with FarCom 300 Destroyed MAIN.C Guards 500 Friendly Fire -101 Cogmind --------- Core Integrity 0/1600 Matter 300/300 Energy 30/100 System Corruption 47% Temperature Cool (9) Movement Core (50) Location -1/Command Parts ------- > --- POWER (3) -------- (None) > --- PROPULSION (5) --- (None) > --- UTILITY (14) ----- (None) > --- WEAPON (3) ------- (None) > --- INVENTORY (5) ---- Matter Filter Relay Coupler [Sentry] (61) Trap Reconfigurator Heavy Mass Driver Peak State ------------ > --- POWER ------------ Micro Antimatter Reactor Quantum Reactor Quantum Reactor > --- PROPULSION ------- Medium Treads Armored Heavy Treads Advanced Heavy Siege Treads > --- UTILITY ---------- Huge Storage Unit Enhanced Optical Array Advanced Target Analyzer Layered Medium Armor Plating Relay Coupler [Swarmer] Relay Coupler [Grunt] Relay Coupler [Sentry] Relay Coupler [Demolisher] Relay Coupler [Specialist] Relay Coupler [Specialist] Relay Coupler [Hunter] Relay Coupler [Heavy] Relay Coupler [Behemoth] Trap Reconfigurator > --- WEAPON ----------- Enhanced Quantum Rifle Enhanced Nova Cannon Advanced Remote Datajack > --- INVENTORY -------- Quantum Reactor Improved Heavy Treads Improved Heavy Siege Treads Advanced Heavy Siege Treads Matter Filter Quantum Capacitor Advanced Cloaking Device Graphene Brace Relay Coupler [Cutter] Relay Coupler [Grunt] Relay Coupler [Brawler] Relay Coupler [Duelist] Relay Coupler [Sentry] Relay Coupler [Sentry] Cooled Proton Cannon Enhanced Nova Cannon Multirail Heavy Mass Driver Advanced Remote Datajack Enhanced Force Lance [Rating: 175] Favorites ----------- Power Light Quantum Reactor Engine Light Angular Momentum Engine Power Core Micro Fission Core Reactor Light Quantum Reactor Propulsion Improved Heavy Treads Treads Improved Heavy Treads Wheel Compact Wheel Utility Relay Coupler [NC] Device Advanced Heat Sink Storage High-capacity Storage Unit Processor Advanced Target Analyzer Hackware Relay Coupler [NC] Protection Improved Powered Armor Weapon Advanced Remote Datajack Energy Gun Enhanced Quantum Rifle Energy Cannon Enhanced Nova Cannon Ballistic Gun Minigun Ballistic Cannon Heavy Linear Accelerator Launcher Long-range Missile Launcher Special Weapon Advanced Remote Datajack Impact Weapon Powered Hammer Slashing Weapon Scythe Piercing Weapon Plasma Lance Build | -11 -10 -10 -10 -9 -8 -7 -7 -7 -7 -6 -6 -6 -5 -5 -4 -4 -4 -4 -3 -3 -2 -2 -2 -2 -1 -1 -1 -1 ------- Run | Yrd Mat Min Exi Min Mat Fac Gar Fac Gar Fac Gar Fac Fac Gar Fac Gar Fac Gar Res Gar Res Gar Res Gar Acc Gar Acc Com Slots Evolved 18 | . . . . . 4 2 . . . 2 . . 2 . 2 . . . 2 . 2 . . . 2 . . . Power 2 | . . . . . . . . . . . . . 1 . 1 . . . . . . . . . . . . . Propulsion 3 | . . . . . 1 . . . . . . . 1 . . . . . . . 1 . . . . . . . Utility 12 | . . . . . 3 1 . . . 2 . . . . 1 . . . 2 . 1 . . . 2 . . . Weapon 1 | . . . . . . 1 . . . . . . . . . . . . . . . . . . . . . . Parts Attached 348 | 5 8 4 . 3 24 7 23 6 21 2 21 6 11 18 13 7 10 25 12 20 1 12 21 25 20 13 1 9 Power 42 | 1 . 1 . . 2 2 1 . 3 . 2 . 1 2 1 1 2 7 . 4 . . 1 5 4 2 . . Engine 11 | 1 . 1 . . 2 2 . . 2 . . . . 1 . . 1 . . . . . . . 1 . . . Core 11 | . . . . . . . 1 . 1 . . . 1 . 1 1 1 5 . . . . . . . . . . Reactor 20 | . . . . . . . . . . . 2 . . 1 . . . 2 . 4 . . 1 5 3 2 . . Propulsion 48 | 2 1 . . 1 6 1 5 2 4 1 2 . 1 . 2 . 1 2 1 2 1 . 3 2 4 1 1 2 Treads 41 | 1 . . . 1 6 1 3 1 2 1 2 . 1 . 2 . 1 2 1 2 1 . 3 2 4 1 1 2 Leg . | . . . . . . . . . . . . . . . . . . . . . . . . . . . . . Wheel 7 | 1 1 . . . . . 2 1 2 . . . . . . . . . . . . . . . . . . . Hover . | . . . . . . . . . . . . . . . . . . . . . . . . . . . . . Flight . | . . . . . . . . . . . . . . . . . . . . . . . . . . . . . Utility 186 | 1 4 2 . . 7 3 9 3 11 1 14 5 7 13 6 6 4 11 10 10 . 11 13 15 8 9 . 3 Device 49 | . 2 . . . 1 1 4 1 1 . 5 . 2 3 2 . 2 . 4 6 . 1 8 3 1 1 . 1 Storage 8 | 1 1 1 . . 1 . . . . . . 1 . . . . 2 . . . . . . . 1 . . . Processor 10 | . . . . . 2 . . . . . . . 2 1 . . . 1 1 . . . 3 . . . . . Hackware 92 | . . . . . . 1 1 2 7 . 9 4 2 9 2 5 . 5 3 3 . 10 2 12 5 8 . 2 Protection 27 | . 1 1 . . 3 1 4 . 3 1 . . 1 . 2 1 . 5 2 1 . . . . 1 . . . Artifact . | . . . . . . . . . . . . . . . . . . . . . . . . . . . . . Weapon 72 | 1 3 1 . 2 9 1 8 1 3 . 3 1 2 3 4 . 3 5 1 4 . 1 4 3 4 1 . 4 Energy Gun 15 | . 2 . . . 3 . . . . . . . . 3 2 . . 1 . 1 . 1 . 1 1 . . . Energy Cannon 9 | . . 1 . . . . . . . . . . . . . . 1 . . 2 . . 1 1 1 . . 2 Ballistic Gun 21 | 1 . . . 1 4 1 5 1 1 . . . . . . . . 3 . . . . 1 1 1 . . 1 Ballistic Cannon 4 | . . . . . . . . . . . 1 . . . . . 1 1 . . . . 1 . . . . . Launcher 6 | . 1 . . 1 1 . 1 . . . 1 . . . 1 . . . . . . . . . . . . . Special Weapon 11 | . . . . . . . 1 . 2 . 1 1 . . . . 1 . 1 1 . . 1 . 1 . . 1 Impact Weapon 1 | . . . . . 1 . . . . . . . . . . . . . . . . . . . . . . . Slashing Weapon 2 | . . . . . . . 1 . . . . . 1 . . . . . . . . . . . . . . . Piercing Weapon 3 | . . . . . . . . . . . . . 1 . 1 . . . . . . . . . . 1 . . Special Melee Weapon . | . . . . . . . . . . . . . . . . . . . . . . . . . . . . . Unidentified Prototypes 18 | . . . . . 4 . . . . . 1 . 4 . 1 1 2 . 1 . . . 2 . 1 1 . . Corrupted Parts 2 | . . . . . . . . . . . . . . . . . . . . . . . . . . 1 . 1 System Corruption 10 | . . . . . . . . . . . . . . . . . . . . . . . . . . 3 . 7 Parts Lost 126 | . 3 1 . 1 3 . 5 1 14 . 2 2 1 3 3 3 1 7 6 4 . 1 9 13 16 3 . 24 Power 23 | . . 1 . . . . . . 2 . . . . 1 . 1 . 3 2 . . . 1 4 4 1 . 3 Propulsion 22 | . 1 . . . . . 2 1 5 . 1 . . . 1 . . . 1 . . . 1 2 3 . . 4 Utility 49 | . 1 . . . 2 . 2 . 3 . 1 1 1 1 1 1 . 3 3 3 . 1 5 3 4 1 . 12 Weapon 32 | . 1 . . 1 1 . 1 . 4 . . 1 . 1 1 1 1 1 . 1 . . 2 4 5 1 . 5 Highest Loss Streak 23 | . 2 1 . 1 1 . 2 1 8 . 1 1 1 2 2 3 1 3 3 2 . 1 6 8 7 3 . 23 To Critical Strikes . | . . . . . . . . . . . . . . . . . . . . . . . . . . . . . Average Backups 18 | 4 9 14 15 16 19 19 19 19 18 18 16 15 16 16 16 17 20 19 20 22 21 22 22 22 15 20 21 20 Power . | . 1 . 1 2 2 2 1 1 1 2 1 1 . . . . . . . . 1 1 1 . . 1 1 . Propulsion 2 | 1 2 3 3 3 3 3 3 2 1 1 1 1 1 1 . 3 3 2 1 1 . 1 1 1 . 2 2 1 Utility 10 | . 2 5 6 7 5 6 9 11 12 13 12 11 12 12 11 10 11 11 11 12 12 12 13 14 11 11 13 13 Weapon 4 | 1 2 4 4 4 8 7 5 3 2 2 1 1 2 2 4 3 4 5 6 7 8 7 6 5 2 4 4 3 Tool/Special . | . . . . . . . . . . . . . . . . . . . . . . . . . . . . . Unused Backups 86 | . . . . 1 10 3 10 3 4 . 10 . 1 2 1 3 2 5 . 3 . 3 . 11 . 5 . 9 Power 7 | . . . . 1 1 1 . . . . 2 . . . . . 1 . . . . . . . . . . 1 Propulsion 5 | . . . . . . . . 1 . . 3 . . . . . . 1 . . . . . . . . . . Utility 53 | . . . . . 1 2 8 . 3 . 5 . 1 2 1 3 . . . 2 . 3 . 9 . 5 . 8 Weapon 21 | . . . . . 8 . 2 2 1 . . . . . . . 1 4 . 1 . . . 2 . . . . Tool/Special . | . . . . . . . . . . . . . . . . . . . . . . . . . . . . . Average Slot Usage (%) 90 | . 98 99 100 100 99 99 97 91 94 90 88 84 80 83 90 93 92 87 84 83 85 86 87 86 86 91 92 86 Engine 2 | . 14 13 14 14 9 7 2 . 4 6 . . . 2 . . 3 . . . . . . . 3 . . . Core 2 | . . . . . . . 4 7 2 . . . . 5 10 9 8 11 8 4 4 . 1 . . . . . Reactor 4 | . . . . . . . . . . . 5 6 10 2 5 5 2 2 3 8 8 11 10 11 5 11 12 11 Treads 13 | . 14 14 14 14 26 23 16 19 9 13 12 13 11 11 11 15 15 10 8 9 13 13 12 9 11 12 12 8 Wheel 2 | . 13 14 14 14 . . 5 3 7 6 1 . . . . . . . . . . . . . . . . . Device 8 | . 11 10 . . 10 6 6 3 . . 9 6 4 3 11 10 8 9 12 17 25 19 16 14 7 4 4 1 Storage 6 | . 14 14 14 14 9 7 7 7 7 6 6 6 5 5 5 5 8 5 4 4 4 4 4 4 4 4 4 4 Processor 7 | . . . . . 12 15 13 7 7 6 6 6 5 5 5 5 5 8 7 4 4 4 5 8 8 8 8 8 Hackware 17 | . . . . . . . 5 7 22 20 22 25 24 24 18 19 21 18 17 15 13 17 20 22 33 35 36 38 Protection 5 | . 1 3 14 14 12 15 8 10 6 10 6 6 4 4 5 5 3 3 4 4 4 4 2 . 1 4 4 2 Energy Gun 3 | . 24 14 14 11 . . . . . . . . . 2 6 6 6 1 . 1 . 1 2 3 6 1 . . Energy Cannon 1 | . . 3 14 14 1 . . . . . . . . . . . . . . 1 4 2 4 5 1 4 4 4 Ballistic Gun 4 | . 2 . . 1 15 22 17 17 10 6 . . . . . . . 1 2 . . . 1 . . . . . Special Weapon 2 | . . . . . . . . . 5 6 5 2 2 3 5 3 1 4 4 4 4 4 3 2 2 4 4 3 Slashing Weapon 1 | . . . . . . . 4 3 4 6 1 1 . 3 3 . . . . . . . . . . . . . Peak Build Rating 175 | 6 9 9 10 13 31 37 57 55 51 53 93 92 114 115 126 125 125 133 134 158 164 170 169 170 173 175 171 171 Average Rating 97 | 4 7 8 9 10 28 34 43 51 44 52 78 85 106 107 122 119 119 119 129 149 163 162 156 158 142 170 168 156 On Entrance 89 | . 6 8 9 10 13 30 37 55 48 50 53 85 78 114 106 125 119 118 119 122 149 164 165 159 161 159 167 171 Avg Prop Armor Cover (%) 10 | 6 8 11 11 10 14 . 9 9 9 10 11 . . . . . . . . . . . 8 . . . . . Naked Turns 3 | . . . . . . . . . . . . . . . . . . . . . . . . . . . . 3 Heaviest Build 185 | 12 30 50 48 50 62 71 90 86 79 74 107 104 117 113 111 109 140 154 148 157 154 185 173 171 164 163 151 151 Greatest Support 190 | 20 20 16 16 16 60 60 71 71 26 20 102 102 150 150 150 132 135 150 150 155 185 185 190 185 183 183 183 183 Greatest Overweight (x) 10 | . 1 3 2 3 3 1 4 5 7 7 10 1 . . 1 . 1 2 . 1 . . 1 1 1 . . 1 Average Overweight (x) . | . . 1 2 2 . 1 2 3 5 4 2 . . . . . . . . . . . . . . . . . Largest Inventory Capacity 25 | 8 15 20 20 20 20 20 20 20 20 20 20 20 20 20 20 20 25 25 25 25 25 25 25 25 25 25 25 25 Average Capacity 21 | 7 13 18 20 20 20 20 20 20 20 20 20 20 20 20 20 20 22 25 25 25 25 25 25 25 25 25 25 24 Most Carried 25 | 8 13 20 20 20 20 20 20 20 20 20 20 20 20 20 20 20 25 25 25 25 24 25 25 25 24 25 25 25 Average Carried 20 | 4 9 16 19 19 19 19 19 19 18 20 19 19 19 19 18 19 22 24 22 24 23 23 23 24 17 24 24 23 Final Capacity 25 | 8 15 20 20 20 20 20 20 20 20 20 20 20 20 20 20 20 25 25 25 25 25 25 25 25 25 25 25 5 Final Carried 25 | 8 13 20 20 19 20 20 20 20 20 20 20 19 19 20 20 20 25 25 25 25 24 25 24 25 24 23 25 5 Class Distribution -------------------- 34% | Botlord-Mutant 17% | Botlord-Tank 12% | Mutant 9% | Bothacker-Mutant 5% | Scavenger-Skirmisher 4% | Bothacker-Tank 3% | Skirmisher Dominant Class ---------------- Mutant | -10/Materials Mutant | -10/Mines Mutant | -10/Exiles Mutant | -9/Mines Scavenger-Skirmisher | -8/Materials Skirmisher | -7/Factory Mutant | -7/Garrison Bothacker-Mutant | -7/Factory Bothacker-Mutant | -7/Garrison Bothacker-Mutant | -6/Factory Bothacker-Tank | -6/Garrison Botlord-Mutant | -6/Factory Botlord-Mutant | -5/Factory Botlord-Mutant | -5/Garrison Botlord-Mutant | -4/Factory Botlord-Mutant | -4/Garrison Scavenger-Mutant | -4/Factory Botlord-Mutant | -4/Garrison Botlord-Mutant | -3/Research Botlord-Mutant | -3/Garrison Botlord-Mutant | -2/Research Botlord-Mutant | -2/Garrison Botlord-Tank | -2/Research Botlord-Tank | -2/Garrison Botlord-Tank | -1/Access Botlord-Mutant | -1/Garrison Botlord-Mutant | -1/Access Botlord-Mutant | -1/Command Resources | -11 -10 -10 -10 -9 -8 -7 -7 -7 -7 -6 -6 -6 -5 -5 -4 -4 -4 -4 -3 -3 -2 -2 -2 -2 -1 -1 -1 -1 ----------- Run | Yrd Mat Min Exi Min Mat Fac Gar Fac Gar Fac Gar Fac Fac Gar Fac Gar Fac Gar Res Gar Res Gar Res Gar Acc Gar Acc Com Matter Collected 14170 | 225 239 80 . 29 859 . 1264 465 931 66 734 375 245 1111 325 155 240 1110 486 424 . 829 437 1277 565 1026 192 481 Remotely . | . . . . . . . . . . . . . . . . . . . . . . . . . . . . . Salvage Created 14449 | 88 649 203 . 84 1131 . 1477 491 754 . 1006 702 140 621 237 473 158 953 645 399 . 348 944 1797 679 151 69 250 Parts 666 | 6 35 8 . 19 50 . 59 23 43 . 38 34 . 19 6 31 13 48 34 23 . 13 47 75 26 5 4 7 Haulers Intercepted 9 | . 1 . . . 6 . . . . . . . . . . . . . . . . . 2 . . . . . Recyclers Shooed 11 | . . . . . 2 . . . . . . . . . 1 . . . 4 . . . . . 4 . . . Parts Field Recycled . | . . . . . . . . . . . . . . . . . . . . . . . . . . . . . Retrieved Matter . | . . . . . . . . . . . . . . . . . . . . . . . . . . . . . Parts Self-Destructed . | . . . . . . . . . . . . . . . . . . . . . . . . . . . . . Prevented . | . . . . . . . . . . . . . . . . . . . . . . . . . . . . . Parts Restored . | . . . . . . . . . . . . . . . . . . . . . . . . . . . . . Kills | -11 -10 -10 -10 -9 -8 -7 -7 -7 -7 -6 -6 -6 -5 -5 -4 -4 -4 -4 -3 -3 -2 -2 -2 -2 -1 -1 -1 -1 ------- Run | Yrd Mat Min Exi Min Mat Fac Gar Fac Gar Fac Gar Fac Fac Gar Fac Gar Fac Gar Res Gar Res Gar Res Gar Acc Gar Acc Com Combat Hostiles Destroyed 275 | . 15 3 . 6 21 . 35 8 20 . 16 22 2 12 4 20 4 17 9 13 . 5 10 21 7 1 1 3 Melee 28 | . . . . . 1 . 1 . 1 . 1 . . 4 . . 4 7 4 3 . . . . . 1 . 1 Guns 96 | . 8 . . . 14 . 25 7 12 . 1 . . 3 3 3 . 1 1 1 . 1 . 11 4 . . 1 Cannons 41 | . . 1 . . 1 . . . . . 8 . 2 4 . . . 2 . 2 . 4 6 7 2 . 1 1 AOE 102 | . 6 2 . 6 4 . 9 1 7 . 6 22 . . 1 16 . 7 4 7 . . 4 . . . . . Classes Destroyed 20 | 2 5 . . . 2 . 4 2 1 . 1 2 . . . . . 1 . . . . . . . . . . Worker 8 | . . . . . . . . 1 . . . 2 1 . . . 1 . . . . . 1 . 2 . . . Builder 8 | . 2 . . 1 1 . . . . . . 2 . . . . . . . . . . 2 . . . . . Tunneler 4 | 1 1 . . 1 1 . . . . . . . . . . . . . . . . . . . . . . . Hauler 9 | . 1 . . . 6 . . . . . . . . . . . . . . . . . 2 . . . . . Recycler 11 | 1 2 1 . . 2 . . 1 . . . . . . . . . . 1 . . . 1 . 2 . . . Watcher 6 | . 1 . . . 2 . . . . . . 1 . 1 . . . . . . . . 1 . . . . . Swarmer 84 | . 6 . . 6 5 . 4 . 6 . 7 . . . . 16 2 7 4 11 . 3 1 6 . . . . Cutter 3 | . . . . . . . 2 . . . 1 . . . . . . . . . . . . . . . . . Saboteur 2 | . . . . . . . . . . . . . . . . . . 2 . . . . . . . . . . Grunt 97 | . 9 3 . . 10 . 20 4 6 . 5 7 2 9 4 3 . 4 2 . . 1 . 7 . . . 1 Brawler 4 | . . . . . . . 1 . . . . 2 . . . . . . . . . . . . . . . 1 Duelist 6 | . . . . . . . 3 . . . . 1 . . . . . 1 . . . . . 1 . . . . Protector 3 | . . . . . . . . 1 . . . 2 . . . . . . . . . . . . . . . . Sentry 16 | . . . . . 5 . 2 . 1 . . 3 . 2 . 1 . 2 . . . . . . . . . . Demolisher 2 | . . . . . . . . . . . . 1 . . . . . . . . . . . . . 1 . . Specialist 3 | . . . . . . . . . 1 . . . . . . . . . . . . . 2 . . . . . Hunter 19 | . . . . . 1 . 1 . 2 . . 1 . . . . . . 3 1 . 3 2 4 . . . 1 Programmer 38 | . . . . . . . 2 3 4 . 2 4 . 1 . . 2 1 1 1 . . 5 3 7 1 1 . Heavy 1 | . . . . . . . . . . . . 1 . . . . . . . . . . . . . . . . Behemoth 2 | . . . . . . . . . . . 1 . . . . . . 1 . . . . . . . . . . Butcher 1 | . . . . . . . . . 1 . . . . . . . . . . . . . . . . . . . Guerrilla 1 | . . . . . . . . . . . . . 1 . . . . . . . . . . . . . . . Best Kill Streak 21 | 1 5 3 . 8 4 . 4 4 8 . 4 21 2 2 2 9 2 5 4 9 . 2 9 13 3 1 1 2 Combat Bots Only 18 | . 3 3 . 6 4 . 4 3 8 . 4 18 2 2 2 9 2 5 4 9 . 2 5 13 2 1 1 2 Max Kills in Single Turn 6 | 1 3 1 . 3 2 . 3 1 3 . 2 6 1 1 1 5 1 3 3 4 . 1 4 2 1 1 1 1 Gunslinging 1 | . . . . . . . 1 . . . . . . . . . . . . . . . . . . . . . Exploded 6 | . 3 1 . 3 2 . 3 1 3 . 2 6 . . 1 5 . 3 3 4 . . 2 . . . . . Melee 1 | . . . . . 1 . 1 . 1 . 1 . . 1 . . 1 1 1 1 . . . . . 1 . 1 Uniques/NPCs Destroyed . | . . . . . . . . . . . . . . . . . . . . . . . . . . . . . Combat | -11 -10 -10 -10 -9 -8 -7 -7 -7 -7 -6 -6 -6 -5 -5 -4 -4 -4 -4 -3 -3 -2 -2 -2 -2 -1 -1 -1 -1 -------- Run | Yrd Mat Min Exi Min Mat Fac Gar Fac Gar Fac Gar Fac Fac Gar Fac Gar Fac Gar Res Gar Res Gar Res Gar Acc Gar Acc Com Hostile Shots Fired 2297 | . 51 11 . 8 91 4 191 79 198 . 91 51 4 129 52 76 63 122 89 100 . 84 193 207 135 18 12 238 Missed 679 | . 12 6 . 2 26 2 76 22 50 . 27 22 4 36 21 15 17 43 27 33 . 28 54 63 32 5 3 53 Hits 1618 | . 39 5 . 6 65 2 115 57 148 . 64 29 . 93 31 61 46 79 62 67 . 56 139 144 103 13 9 185 Melee 47 | . . . . . . . 3 2 . . 4 . . . . . . 9 5 . . 1 . 1 . . . 22 Projectile 1571 | . 39 5 . 6 65 2 112 55 148 . 60 29 . 93 31 61 46 70 57 67 . 55 139 143 103 13 9 163 AOE 8 | . . . . . . . 2 . . . 1 1 . . . . . . . . . . . . 2 . . 2 Critical Strikes 83 | . 1 . . . 5 . 5 3 10 . 2 4 . 4 . . 3 5 4 1 . 1 5 7 3 . 1 19 Actively Blocked 31 | . . . . . . . . . . . . . . . . . . . . . . . 5 7 2 . . 17 Part Disruptions 11 | . . . . . . . . . 3 . . . . . . . . . . . . . 3 2 2 1 . . Damage Taken 28535 | . 678 54 . 83 979 31 1301 881 1975 . 836 517 478 1798 404 652 458 1559 1293 952 . 573 2386 2778 2429 788 214 4438 Core 3339 | . 86 . . 16 104 . 130 87 129 . 84 70 85 164 39 13 52 90 19 43 . 62 181 284 206 160 . 1235 Absorbed by Shields 5783 | . . . . . . . 22 13 . . 153 84 . 230 177 410 363 474 123 580 . 576 1074 741 221 71 115 356 Reduced by Siege Mode 50 | . . . . . . . . . . . . . . . . . . 29 . 12 . . 9 . . . . . Redirected to Shielding 9 | . . . . . 9 . . . . . . . . . . . . . . . . . . . . . . . Ignored by Resistances 257 | . . . . . . . . . . . . . . . . . . . 104 . . 153 . . . . . . Regen/Repaired (Parts) 476 | . . . . . . . . . . . . . . . 476 . . . . . . . . . . . . . Core Remaining (%) 76 | 100 . . . 59 81 . . . 50 . . 81 . 75 . . . 83 . 95 . . . 63 . . . . Volleys Fired 1215 | 7 57 6 . 4 61 . 57 37 55 4 43 15 26 93 22 42 10 56 39 47 . 67 71 117 84 77 37 81 Largest 3 | 1 2 2 . 2 2 . 3 3 3 1 1 1 1 2 2 2 2 2 1 2 . 2 2 3 3 2 1 2 Hottest 315 | 20 90 100 . 100 89 . 85 86 91 5 70 46 70 130 130 130 153 153 43 185 . 240 240 315 240 185 120 165 Shots Fired 1736 | 7 102 10 . 5 116 . 146 82 120 4 43 15 26 116 30 50 11 73 39 50 . 73 91 191 136 83 37 80 Gun 902 | 7 96 4 . 1 105 . 136 71 103 . 4 . . 72 19 39 1 31 13 15 . 7 19 75 77 5 . 2 Cannon 419 | . . 4 . 1 7 . . . . . 18 . 25 20 . . 3 12 . 24 . 31 60 100 33 18 22 41 Launcher 86 | . 6 2 . 3 4 . 10 . 6 . 6 13 . . 2 9 2 15 2 2 . . 3 1 . . . . Special 329 | . . . . . . . . 11 11 4 15 2 1 24 9 2 5 15 24 9 . 35 9 15 26 60 15 37 Kinetic 653 | 7 16 . . . 99 . 136 71 103 . 22 . 25 20 . . 2 17 13 . . 17 20 62 21 . . 2 Thermal 448 | . 80 8 . 2 13 . . . . . . . . . . . . . . 38 . 14 52 100 89 23 22 7 Explosive 86 | . 6 2 . 3 4 . 10 . 6 . 6 13 . . 2 9 2 15 2 2 . . 3 1 . . . . Electromagnetic 220 | . . . . . . . . . . . . . . 72 19 39 2 26 . 1 . 7 7 13 . . . 34 Robot Hit Streak 33 | 5 7 4 . 2 7 . 19 19 33 3 16 7 11 8 16 8 4 13 15 4 . 16 15 12 21 10 5 16 Robot Miss Streak 7 | 2 3 3 . 1 4 . 2 3 7 1 4 . 1 3 2 4 2 4 1 2 . 5 2 4 3 3 3 3 Penetration Max 2 | . . . . . 1 . 1 1 . . . . . 1 . . . . 1 . . . 1 2 1 . . 1 Secondary Targets 11 | . 1 . . . 1 . 3 1 2 . . . . . . . . . . . . . . 2 1 . . . Max Gunslinging Chain 1 | . 1 . . . 1 . 1 1 1 . . . . . . . . . . . . . . 1 1 . . . Shots Hit Robots 1186 | 5 57 6 . 3 89 . 103 60 88 6 54 7 7 91 25 27 14 61 48 25 . 48 56 109 93 53 14 37 Core Hits 633 | 3 39 6 . 9 61 . 82 20 48 . 35 58 2 31 10 34 11 32 15 18 . 10 35 47 17 2 1 7 Critical Kills 19 | . . . . . 1 . 1 . 2 . . . . . . . . . 1 . . . . 13 1 . . . Critical Parts Destroyed 21 | . . . . . 2 . 1 . 2 . . . . . . . . 1 5 . . . . 7 2 . . 1 Critical Strikes 70 | . 2 . . . 3 . 2 . 4 . 3 . 1 4 1 . 1 7 6 . . 3 4 21 4 2 . 2 Burn 2 | . 2 . . . . . . . . . . . . . . . . . . . . . . . . . . . Meltdown 4 | . . . . . . . . . . . . . . . . . . . . . . . . 3 1 . . . Destroy 39 | . . . . . 2 . 2 . 4 . . . . . . . . 2 6 . . . 2 17 3 . . 1 Blast 12 | . . . . . . . . . . . 2 . 1 1 . . 1 2 . . . 3 2 . . . . . Corrupt 2 | . . . . . . . . . . . . . . . 1 . . . . . . . . 1 . . . . Smash 1 | . . . . . 1 . . . . . . . . . . . . . . . . . . . . . . . Sever 4 | . . . . . . . . . . . 1 . . 3 . . . . . . . . . . . . . . Impale 6 | . . . . . . . . . . . . . . . . . . 3 . . . . . . . 2 . 1 Melee Attacks 332 | . . . . . 9 . 45 7 28 3 35 1 . 45 3 8 26 62 29 26 . . . . . 4 . 1 Impact 9 | . . . . . 9 . . . . . . . . . . . . . . . . . . . . . . . Slashing 166 | . . . . . . . 45 7 28 3 35 1 . 45 2 . . . . . . . . . . . . . Piercing 157 | . . . . . . . . . . . . . . . 1 8 26 62 29 26 . . . . . 4 . 1 Sneak Attacks 22 | . . . . . . . 1 . . 1 . . . 3 . . . 7 7 . . . . . . 2 . 1 Combat Hostiles 2 | . . . . . . . . . . . . . . 2 . . . . . . . . . . . . . . Follow-up Attacks . | . . . . . . . . . . . . . . . . . . . . . . . . . . . . . Damage Inflicted 42899 | 61 1298 260 . 298 2409 4 2785 1139 2346 121 4107 4612 416 2412 649 1877 588 2857 1363 1556 . 1260 2953 3472 2717 593 53 693 Guns 11819 | 61 664 11 . 11 1667 . 1748 1139 1612 . 14 . . 624 234 291 . 232 110 59 . 84 230 1031 1805 61 . 131 Cannons 10473 | . . 55 . . 55 . . . . . 817 . 343 1046 . . 53 669 . 526 . 1176 1835 2219 885 303 53 438 Explosions 14289 | . 634 194 . 287 444 . 975 . 671 . 1612 4575 . 64 385 1586 170 503 366 713 . . 888 222 . . . . Melee 6147 | . . . . . 225 . 62 . 63 121 1656 30 . 671 30 . 361 1453 887 245 . . . . . 229 . 114 Ramming 171 | . . . . . 18 4 . . . . 8 7 73 7 . . 4 . . 13 . . . . 27 . . 10 Kinetic 12334 | 61 111 . . . 1607 . 1748 1139 1612 . 831 . 343 1046 . . 53 688 110 . . 962 562 831 499 . . 131 Thermal 9363 | . 651 66 . 11 115 . . . . . . 1110 . 64 . 48 . . . 585 . 214 1384 2326 2191 364 53 181 Explosive 12853 | . 536 194 . 287 444 . 975 . 671 . 1612 3465 . . 385 1538 161 503 366 713 . . 888 115 . . . . Electromagnetic 2031 | . . . . . . . . . . . . . . 624 234 291 9 213 . . . 84 119 200 . . . 257 Impact 225 | . . . . . 225 . . . . . . . . . . . . . . . . . . . . . . . Slashing 2633 | . . . . . . . 62 . 63 121 1656 30 . 671 30 . . . . . . . . . . . . . Piercing 3289 | . . . . . . . . . . . . . . . . . 361 1453 887 245 . . . . . 229 . 114 Highest Corruption 47 | . . . . . 3 1 3 3 8 . . . 2 2 . . 3 9 5 8 . 1 14 18 15 21 21 47 Average Corruption 8 | . . . . . 3 1 1 2 6 . . . 2 2 . . 2 8 4 5 . 1 6 17 11 19 21 21 Corruption Purged 7 | . . . . . . . . 3 . . . . . . . . 4 . . . . . . . . . . . Corruption Blocked . | . . . . . . . . . . . . . . . . . . . . . . . . . . . . . Effects 563 | . . . . . 32 . 20 3 40 . . . 3 26 . . 3 48 16 29 . 5 21 107 61 78 42 29 Message Errors 121 | . . . . . 11 . 2 1 8 . . . . 5 . . 1 10 5 7 . 1 3 21 11 17 16 2 Matter Fused 122 | . . . . . 7 . 2 . 8 . . . 2 4 . . . 9 3 8 . . 7 23 11 23 7 8 Heat Flow Errors 72 | . . . . . 4 . 2 . 5 . . . 1 5 . . 1 10 1 3 . . 3 19 5 7 4 2 Energy Discharges 66 | . . . . . 3 . 3 . 4 . . . . 2 . . 1 5 5 5 . 1 . 15 9 5 3 5 Parts Rejected 13 | . . . . . . . . . 1 . . . . . . . . . . . . . 2 . 3 3 2 2 Parts Fused 4 | . . . . . . . . . . . . . . . . . . . . . . . . . 1 2 . 1 Data Loss (minor) 71 | . . . . . 4 . 6 . 7 . . . . 5 . . . 6 . 2 . 2 2 10 3 17 4 3 Data Loss (major) 33 | . . . . . 2 . 4 . 2 . . . . 2 . . . 3 1 2 . . 2 7 4 1 1 2 Misfires 24 | . . . . . 1 . . 2 4 . . . . 2 . . . 1 . 1 . 1 . 2 7 2 1 . Alerts 11 | . . . . . . . 1 . . . . . . . . . . 3 1 1 . . . 2 1 1 1 . Misdirections 10 | . . . . . . . . . . . . . . . . . . . . . . . 1 2 3 . 2 2 Weapon Failures 16 | . . . . . . . . . 1 . . . . 1 . . . 1 . . . . 1 6 3 . 1 2 Overload Shots 1 | . . . . . . . . . . . . . . . . . . . . . . . . . . . . 1 Overflow Damage 1261 | . 37 20 . . 90 . . . . 31 234 157 35 97 21 11 23 48 141 114 . 14 43 65 72 2 . 6 Projectiles 463 | . . . . . . . . . . . 123 . 33 85 . . . . . 24 . 14 41 65 72 . . 6 Explosions 429 | . 37 20 . . 5 . . . . . 66 157 . . 21 11 6 19 18 67 . . 2 . . . . . Melee 369 | . . . . . 85 . . . . 31 45 . 2 12 . . 17 29 123 23 . . . . . 2 . . Knockbacks 11 | . . . . . 1 . . . . . 1 . 3 2 . . 1 . . . . . 2 . 1 . . . Impact 3 | . . . . . 1 . . . . . . . 1 . . . . . . . . . . . 1 . . . Kinetic 8 | . . . . . . . . . . . 1 . 2 2 . . 1 . . . . . 2 . . . . . Secondary . | . . . . . . . . . . . . . . . . . . . . . . . . . . . . . Self-Inflicted Damage 663 | . 101 . . 37 . . . . . . 38 . . 60 . 70 . 173 . 77 . . 107 . . . . . Shots 14 | . 2 . . 1 . . . . . . 1 . . 1 . 1 . 3 . 2 . . 3 . . . . . Rammed 23 | . . . . . 2 1 . . . . 3 1 2 3 . . 1 . . 1 . . 1 . 6 . . 2 Targets Rammed 23 | . . . . . 2 1 . . . . 3 1 2 3 . . 1 . . 1 . . 1 . 6 . . 2 Kicked . | . . . . . . . . . . . . . . . . . . . . . . . . . . . . . Crushed . | . . . . . . . . . . . . . . . . . . . . . . . . . . . . . Highest Temperature 531 | . 391 90 . 42 278 . 247 173 222 . 36 49 302 435 381 63 218 362 216 445 . 260 362 363 434 531 476 216 Average Temperature 101 | . 93 35 . 22 49 . 58 66 47 . 15 27 85 108 170 27 76 98 120 149 . 82 124 103 117 120 163 77 Received Heat Transfer 3713 | . 177 30 . . 486 9 515 267 441 . 87 125 . 609 85 12 6 68 104 12 . 56 64 176 108 27 13 236 Effects 52 | . 5 . . . . . . . . . . . 1 5 9 . . 1 . 1 . . . 2 7 12 9 . Shutdowns 12 | . 1 . . . . . . . . . . . . 2 1 . . 1 . 1 . . . . . 4 2 . Energy Bleed 11 | . 1 . . . . . . . . . . . . . 2 . . . . . . . . . 3 3 2 . Interference 23 | . 3 . . . . . . . . . . . . 1 6 . . . . . . . . 2 3 3 5 . Matter Decay 1 | . . . . . . . . . . . . . . 1 . . . . . . . . . . . . . . Short Circuit 2 | . . . . . . . . . . . . . 1 . . . . . . . . . . . . 1 . . Damage (minor) 2 | . . . . . . . . . . . . . . 1 . . . . . . . . . . 1 . . . Damage (core) 1 | . . . . . . . . . . . . . . . . . . . . . . . . . . 1 . . Siege Activations 3 | . . . . . . . . . . . . . . . . . . 1 . 1 . . 1 . . . . . Total Turns 76 | . . . . . . . . . . . . . . . . . . 22 . 12 . . 42 . . . . . Longest Duration 42 | . . . . . . . . . . . . . . . . . . 22 . 12 . . 42 . . . . . Martial Activations . | . . . . . . . . . . . . . . . . . . . . . . . . . . . . . Shielding Activations . | . . . . . . . . . . . . . . . . . . . . . . . . . . . . . Robots Disrupted 6 | . . . . . . . . . . . . . . 4 2 . . . . . . . . . . . . . Combat Hostiles 5 | . . . . . . . . . . . . . . 3 2 . . . . . . . . . . . . . Robots Corrupted 6 | . . . . . 2 . . . . . . . 1 1 . 1 . . . . . . . 1 . . . . Combat Hostiles 4 | . . . . . 1 . . . . . . . . 1 . 1 . . . . . . . 1 . . . . Parts Fried 15 | . . . . . 6 . . . . . . . 1 3 . 2 . 1 . . . . . 2 . . . . Impact Corruptions 4 | . . . . . 3 . . . . . . . 1 . . . . . . . . . . . . . . . Robots Melted 5 | . 1 . . . . . . . . . . . . . . . . . . . . . . 3 1 . . . Combat Hostiles 4 | . 1 . . . . . . . . . . . . . . . . . . . . . . 2 1 . . . Parts Melted 14 | . . . . . . . . 1 . . . . . . . . . . . . . . 1 7 5 . . . Heat Transferred 8925 | . 1696 136 . 25 222 . . . . . . 625 . 50 . . . . . 462 . 185 1110 1937 2054 276 37 110 Parts Sabotaged 2 | . . . . . . . . . . . . . . . . . . 1 1 . . . . . . . . . Parts Stolen . | . . . . . . . . . . . . . . . . . . . . . . . . . . . . . Parts Stripped . | . . . . . . . . . . . . . . . . . . . . . . . . . . . . . Power Chain Reactions 3 | . . . . . . . . . . . . . . 1 . 1 . . . . . . . 1 . . . . Alert | -11 -10 -10 -10 -9 -8 -7 -7 -7 -7 -6 -6 -6 -5 -5 -4 -4 -4 -4 -3 -3 -2 -2 -2 -2 -1 -1 -1 -1 ------- Run | Yrd Mat Min Exi Min Mat Fac Gar Fac Gar Fac Gar Fac Fac Gar Fac Gar Fac Gar Res Gar Res Gar Res Gar Acc Gar Acc Com Maximum Alert Level 5 | . 1 . . 1 1 . 4 3 4 3 5 5 4 5 4 5 3 4 3 4 2 3 2 5 5 5 5 5 Low Security (%) 14 | 100 99 100 . 90 29 100 21 . . . . . . . . . . . . . . . . . . . . . Level 1 5 | . . . . 9 70 . 6 . . . . . . . . . . . . . . . . . . . . . Level 2 15 | . . . . . . . 30 78 28 18 8 . . . . . . 22 9 17 100 55 100 16 . . . . Level 3 25 | . . . . . . . 15 21 36 81 50 47 . 18 58 31 100 40 90 62 . 44 . 12 . . . . Level 4 22 | . . . . . . . 26 . 35 . 33 9 100 66 41 28 . 37 . 20 . . . 42 47 . . . Level 5 14 | . . . . . . . . . . . 7 16 . 14 . 40 . . . . . . . 28 46 100 81 40 High Security 2 | . . . . . . . . . . . . 26 . . . . . . . . . . . . 6 . 18 59 Max Security . | . . . . . . . . . . . . . . . . . . . . . . . . . . . . . Peak Influence 3758 | 5 205 70 . 225 320 128 1525 800 1376 781 1726 2993 1543 1936 1403 1749 917 1501 950 1238 696 1099 642 2257 2888 3758 3013 2205 Initial 2310 | . . 58 . . 81 128 . 800 414 722 539 905 1466 924 1016 930 917 537 843 645 696 492 618 430 1353 2310 2254 1852 Average 1077 | . 118 13 . 24 211 21 702 659 964 721 1143 1488 1427 1373 1129 1376 779 987 804 982 677 742 571 1287 1805 3372 2554 1982 Influence Increases 25526 | 10 622 83 . 248 907 12 1675 234 1202 149 1367 2534 250 1202 889 849 273 1184 543 653 . 1077 422 2097 2541 2038 1358 1107 Destroy 0b10 Robot/C 10700 | . 300 60 . 140 520 . 880 160 540 80 580 1020 100 380 400 400 100 460 300 340 . 460 200 740 900 700 500 440 Destroy 0b10 Robot/NC 450 | 10 35 5 . 10 65 . . 20 . . 30 70 5 5 10 . 5 10 10 . . . 35 15 65 . 15 30 Destroy Leader 1384 | . 74 10 . 20 148 . 30 40 40 20 50 202 10 20 80 40 20 40 40 50 . 40 46 60 154 40 70 40 Allied During Kill 4587 | . . . . 25 52 . 71 2 31 46 78 736 33 55 207 . 8 27 65 64 . 239 11 344 723 740 585 445 Trap Triggered on 0b10 70 | . . . . . . . . . . . . . . 30 . . . . . . . . . . . 20 20 . Successful Hack 207 | . 20 . . . . 12 . 3 14 . . 17 . 10 51 . . 14 . . . . 7 14 24 21 . . Select Force Hacks 60 | . 60 . . . . . . . . . . . . . . . . . . . . . . . . . . . Disable Machine 825 | . 45 . . 30 75 . 15 . . . 30 285 45 . 45 . 15 . 30 . . . 15 30 45 15 90 15 Anti-Garrison Action 3700 | . . . . . . . 450 . 400 . 500 . . 450 . 150 . 400 . 100 . 300 . 650 . 300 . . Destroy Structure 2838 | . 73 8 . 23 32 . 154 9 132 3 84 189 42 117 96 199 50 203 68 99 . 23 93 154 630 172 78 107 Partial Spotted 30 | . 15 . . . . . . . . . . . . . . . . . . . . . . 15 . . . . Lose Combat Pursuer 675 | . . . . . 15 . 75 . 45 . 15 15 15 135 . 60 75 30 30 . . 15 15 75 . 30 . 30 Influence Decreases 23527 | 10 472 226 7 39 834 294 150 1167 418 754 412 1267 1923 586 1496 429 1254 451 1184 275 582 634 947 414 1910 1168 2222 2002 Entered New Map 13528 | . . 92 7 . 128 154 . 725 178 654 232 821 1527 396 920 399 832 231 658 215 542 164 481 144 904 578 1504 1042 Time Decay 4959 | 10 442 134 . 29 636 140 . 392 . 100 . 326 326 . 386 . 392 . 386 . 40 . 356 . 486 . 278 100 Lost Part 1250 | . 30 . . 10 30 . 50 10 140 . 20 20 10 30 30 30 10 70 60 40 . 10 90 130 160 30 . 240 Lost Ally 3790 | . . . . . 40 . 100 40 100 . 160 100 60 160 160 . 20 150 80 20 . 460 20 140 360 560 440 620 Squads Dispatched 95 | . 6 . . . 5 2 . 6 . 1 . 20 5 . 5 . 4 . 4 . . . 3 . 16 . 9 9 Investigation 12 | . 4 . . . 1 . . 2 . . . 2 2 . 1 . . . . . . . . . . . . . Extermination 15 | . . . . . . 1 . 1 . . . 1 1 . 2 . 2 . 1 . . . 2 . 3 . 1 . Reinforcement 18 | . 2 . . . 4 1 . . . . . 3 . . . . 1 . 1 . . . 1 . 3 . 1 1 Assault 42 | . . . . . . . . 3 . . . 10 2 . 2 . 1 . 2 . . . . . 7 . 7 8 Garrison 8 | . . . . . . . . . . 1 . 4 . . . . . . . . . . . . 3 . . . Intercept . | . . . . . . . . . . . . . . . . . . . . . . . . . . . . . Searches Triggered . | . . . . . . . . . . . . . . . . . . . . . . . . . . . . . Unchained Authorized 1 | . . . . . . . . . . . . . . . . . . . . . . . . . 1 . . . Construction Impeded 3 | . . . . . 1 . . . . . . 1 . . . . . . 1 . . . . . . . . . Haulers Reinforced 3 | . . . . . . . . . . . . . . . . . 1 . . . . . . . 2 . . . Active Scanning Responses . | . . . . . . . . . . . . . . . . . . . . . . . . . . . . . Cargo Convoy Interrupts . | . . . . . . . . . . . . . . . . . . . . . . . . . . . . . Stealth | -11 -10 -10 -10 -9 -8 -7 -7 -7 -7 -6 -6 -6 -5 -5 -4 -4 -4 -4 -3 -3 -2 -2 -2 -2 -1 -1 -1 -1 --------- Run | Yrd Mat Min Exi Min Mat Fac Gar Fac Gar Fac Gar Fac Fac Gar Fac Gar Fac Gar Res Gar Res Gar Res Gar Acc Gar Acc Com Distress Signals 9 | . 1 . . . 1 . . . . . . 2 . . . . . . . . . . . . 2 . 2 1 Communications Jammed 364 | . . . . . . . . . . . . . . 22 7 . . . 16 . . . 48 . 148 42 . 81 Distress Signals 364 | . . . . . . . . . . . . . . 22 7 . . . 16 . . . 48 . 148 42 . 81 Times Spotted 763 | . 22 3 . 7 41 5 40 25 34 5 34 36 5 34 23 20 11 33 28 21 . 43 32 49 58 52 34 68 Peak Tracking Total 27 | . 4 3 . 4 6 4 8 7 10 2 6 15 4 5 5 8 3 5 6 9 . 5 10 9 7 8 6 27 Tactical Retreats 35 | . . . . . 1 . 3 . 3 . 1 1 1 6 . 1 5 2 2 . . 1 1 4 . 1 . 2 Traps | -11 -10 -10 -10 -9 -8 -7 -7 -7 -7 -6 -6 -6 -5 -5 -4 -4 -4 -4 -3 -3 -2 -2 -2 -2 -1 -1 -1 -1 ------- Run | Yrd Mat Min Exi Min Mat Fac Gar Fac Gar Fac Gar Fac Fac Gar Fac Gar Fac Gar Res Gar Res Gar Res Gar Acc Gar Acc Com Traps Triggered 54 | . 3 . . . 2 . 9 2 8 . 7 . . 3 1 . 1 1 . 2 . 1 1 7 3 3 . . Indirectly . | . . . . . . . . . . . . . . . . . . . . . . . . . . . . . Trap Hack Attempts . | . . . . . . . . . . . . . . . . . . . . . . . . . . . . . Triggered . | . . . . . . . . . . . . . . . . . . . . . . . . . . . . . Disarmed . | . . . . . . . . . . . . . . . . . . . . . . . . . . . . . Reprogrammed . | . . . . . . . . . . . . . . . . . . . . . . . . . . . . . Reused 7 | . . . . . . . . . . . . . . 3 . . . . . . . . . . . 2 2 . Traps Reconfigurated 74 | . . . . . . . 7 . . . 9 . . 5 2 1 . . . . . 12 . . 5 24 9 . Traps Extracted . | . . . . . . . . . . . . . . . . . . . . . . . . . . . . . Installed . | . . . . . . . . . . . . . . . . . . . . . . . . . . . . . Triggered 7 | . . . . . . . . . . . . . . 3 . . . . . . . . . . . 2 2 . Most Traps Carried 5 | . . 5 5 4 2 . . . . . . . . . . . . . . . . . . . . . . . Machines | -11 -10 -10 -10 -9 -8 -7 -7 -7 -7 -6 -6 -6 -5 -5 -4 -4 -4 -4 -3 -3 -2 -2 -2 -2 -1 -1 -1 -1 ---------- Run | Yrd Mat Min Exi Min Mat Fac Gar Fac Gar Fac Gar Fac Fac Gar Fac Gar Fac Gar Res Gar Res Gar Res Gar Acc Gar Acc Com Machines Disabled 99 | . 3 . . 2 5 . 6 . 4 . 9 19 3 3 3 5 1 3 2 3 . 4 1 8 3 5 6 1 Max in Single Turn 2 | . 2 . . 2 1 . 1 . 1 . 2 1 1 1 . 2 1 1 1 1 . 1 1 1 1 1 1 . Garrison Access 1 | . . . . . . . . . . . . 1 . . . . . . . . . . . . . . . . Garrison Relay 40 | . . . . . . . 5 . 4 . 5 . . 3 . 2 . 3 . 2 . 4 . 6 . 6 . . Phase Generator 2 | . . . . . . . . . . . 1 . . . . 1 . . . . . . . . . . . . Machines Repaired . | . . . . . . . . . . . . . . . . . . . . . . . . . . . . . Machines Dismantled . | . . . . . . . . . . . . . . . . . . . . . . . . . . . . . Machines Sabotaged . | . . . . . . . . . . . . . . . . . . . . . . . . . . . . . Overloaded Fab Kills . | . . . . . . . . . . . . . . . . . . . . . . . . . . . . . Hacking | -11 -10 -10 -10 -9 -8 -7 -7 -7 -7 -6 -6 -6 -5 -5 -4 -4 -4 -4 -3 -3 -2 -2 -2 -2 -1 -1 -1 -1 --------- Run | Yrd Mat Min Exi Min Mat Fac Gar Fac Gar Fac Gar Fac Fac Gar Fac Gar Fac Gar Res Gar Res Gar Res Gar Acc Gar Acc Com Machines Accessed 68 | . 8 . 1 . 6 2 1 3 3 1 1 5 5 3 6 . 2 1 4 . 2 2 4 2 3 3 . . Terminals 38 | . 6 . . . 4 . 1 . 3 . 1 2 2 3 4 . 1 1 . . . 2 2 2 1 3 . . Fabricators 4 | . . . . . . . . 1 . . . 1 1 . . . . . . . . . 1 . . . . . Repair Stations 1 | . . . . . . . . . . . . . . . 1 . . . . . . . . . . . . . Recycling Units 7 | . 2 . . . . . . 1 . . . 1 1 . . . . . 1 . 1 . . . . . . . Scanalyzers 5 | . . . . . 1 1 . . . . . . . . . . . . 2 . . . . . 1 . . . Garrison Access 12 | . . . . . 1 1 . 1 . 1 . 1 1 . 1 . 1 . 1 . 1 . 1 . 1 . . . Total Hacks 169 | . 28 . 1 . 15 8 3 10 6 1 2 15 12 10 18 . 3 2 6 . 2 5 10 5 3 4 . . Successful 63 | . 12 . 1 . 2 6 1 4 1 1 . 7 4 3 8 . 1 1 1 . 2 . 3 1 2 2 . . Failed 104 | . 15 . . . 12 2 2 6 5 . 2 8 8 7 10 . 2 1 5 . . 5 7 4 1 2 . . Catastrophic 26 | . 3 . . . 3 . 1 . 2 . 1 1 4 2 2 . 1 1 1 . . 1 1 1 1 . . . Database Lockouts 2 | . 1 . . . 1 . . . . . . . . . . . . . . . . . . . . . . . Manual 73 | . 25 . 2 . 8 . 2 5 . . 1 6 6 7 5 . 2 . . . . . 3 1 . . . . Terminals 100 | . 23 . . . 8 . 3 . 6 . 2 7 6 10 12 . 2 2 . . . 5 4 5 1 4 . . Fabricators 16 | . . . . . . . . 4 . . . 5 2 . . . . . . . . . 5 . . . . . Repair Stations 5 | . . . . . . . . . . . . . . . 5 . . . . . . . . . . . . . Recycling Units 17 | . 5 . . . . . . 5 . . . 2 3 . . . . . 1 . 1 . . . . . . . Scanalyzers 15 | . . . . . 4 6 . . . . . . . . . . . . 4 . . . . . 1 . . . Garrison Access 15 | . . . . . 3 2 . 1 . 1 . 1 1 . 1 . 1 . 1 . 1 . 1 . 1 . . . Terminal Hacks 19 | . 4 . 1 . . . 1 . 1 . . 1 . 3 3 . . 1 . . . . 1 1 . 2 . . Robot Analysis 2 | . 2 . . . . . . . . . . . . . . . . . . . . . . . . . . . Open Door 1 | . . . . . . . . . . . . . . . . . . . . . . . . . . 1 . . Emergency Access Points 6 | . . . . . . . 1 . 1 . . . . 1 . . . 1 . . . . . 1 . 1 . . Terminal Index 2 | . 1 . . . . . . . . . . . . . 1 . . . . . . . . . . . . . Registered Components 3 | . . . . . . . . . . . . 1 . . 1 . . . . . . . 1 . . . . . Zone Layout 2 | . 1 . . . . . . . . . . . . . 1 . . . . . . . . . . . . . Garrison Registry 1 | . . . . . . . . . . . . . . 1 . . . . . . . . . . . . . . Patrol Navigation 1 | . . . . . . . . . . . . . . 1 . . . . . . . . . . . . . . Proto ID Catalog 1 | . . . 1 . . . . . . . . . . . . . . . . . . . . . . . . . Fabricator Hacks 5 | . . . . . . . . 1 . . . 2 1 . . . . . . . . . 1 . . . . . Network Status 3 | . . . . . . . . 1 . . . 1 . . . . . . . . . . 1 . . . . . Build 2 | . . . . . . . . . . . . 1 1 . . . . . . . . . . . . . . . Repair Station Hacks 3 | . . . . . . . . . . . . . . . 3 . . . . . . . . . . . . . Scan Component 2 | . . . . . . . . . . . . . . . 2 . . . . . . . . . . . . . Repair 1 | . . . . . . . . . . . . . . . 1 . . . . . . . . . . . . . Recycling Unit Hacks 6 | . 2 . . . . . . 1 . . . 1 1 . . . . . . . 1 . . . . . . . Report Inventory 3 | . 1 . . . . . . . . . . . 1 . . . . . . . 1 . . . . . . . Retrieve Components 3 | . 1 . . . . . . 1 . . . 1 . . . . . . . . . . . . . . . . Scanalyzer 8 | . . . . . 2 5 . . . . . . . . . . . . . . . . . . 1 . . . Retrieve Study 8 | . . . . . 2 5 . . . . . . . . . . . . . . . . . . 1 . . . Garrison Access Hacks 11 | . . . . . . 1 . 1 . 1 . 1 1 . 1 . 1 . 1 . 1 . 1 . 1 . . . Unlock Access 10 | . . . . . . 1 . 1 . 1 . . 1 . 1 . 1 . 1 . 1 . 1 . 1 . . . Seal Access 1 | . . . . . . . . . . . . 1 . . . . . . . . . . . . . . . . Unauthorized Hacks 11 | . 6 . . . . . . 1 . . . 2 1 . 1 . . . . . . . . . . . . . Terminals 7 | . 4 . . . . . . . . . . 1 1 . 1 . . . . . . . . . . . . . Botnet 3 | . . . . . . . . . . . . 1 1 . 1 . . . . . . . . . . . . . Skim 4 | . 4 . . . . . . . . . . . . . . . . . . . . . . . . . . . Fabricators 1 | . . . . . . . . . . . . 1 . . . . . . . . . . . . . . . . Fabnet 1 | . . . . . . . . . . . . 1 . . . . . . . . . . . . . . . . Repair Stations . | . . . . . . . . . . . . . . . . . . . . . . . . . . . . . Recycling Units 3 | . 2 . . . . . . 1 . . . . . . . . . . . . . . . . . . . . Reject 1 | . . . . . . . . 1 . . . . . . . . . . . . . . . . . . . . Tunnel 2 | . 2 . . . . . . . . . . . . . . . . . . . . . . . . . . . Scanalyzers . | . . . . . . . . . . . . . . . . . . . . . . . . . . . . . Garrison Access . | . . . . . . . . . . . . . . . . . . . . . . . . . . . . . Data Cores Recovered 1 | . . . . . . . . . . . . 1 . . . . . . . . . . . . . . . . Used . | . . . . . . . . . . . . . . . . . . . . . . . . . . . . . Hacking Detections 55 | . 6 . . . 6 2 1 3 2 . 1 3 5 2 5 . 2 1 3 . 1 2 4 2 3 1 . . Full Trace Events 12 | . 1 . . . 1 . . 1 2 . . 2 2 . 1 . . 1 . . . . . 1 . . . . Feedback Events . | . . . . . . . . . . . . . . . . . . . . . . . . . . . . . Feedback Blocked . | . . . . . . . . . . . . . . . . . . . . . . . . . . . . . Robot Schematics Acquired . | . . . . . . . . . . . . . . . . . . . . . . . . . . . . . Robots Built 3 | . . . . . . . . . . . . . 3 . . . . . . . . . . . . . . . Authchips . | . . . . . . . . . . . . . . . . . . . . . . . . . . . . . Time 84 | . . . . . . . . . . . . . 84 . . . . . . . . . . . . . . . Total Robot Build Rating 18 | . . . . . . . . . . . . . 18 . . . . . . . . . . . . . . . Part Schematics Acquired . | . . . . . . . . . . . . . . . . . . . . . . . . . . . . . Parts Built 2 | . . . . . . . . . . . . 2 . . . . . . . . . . . . . . . . Authchips . | . . . . . . . . . . . . . . . . . . . . . . . . . . . . . Time 128 | . . . . . . . . . . . . 128 . . . . . . . . . . . . . . . . Total Part Build Rating 16 | . . . . . . . . . . . . 16 . . . . . . . . . . . . . . . . Part Studies Acquired 8 | . . . . . 2 5 . . . . . . . . . . . . . . . . . . 1 . . . Parts Repaired 1 | . . . . . . . . . . . . . . . 1 . . . . . . . . . . . . . Time 31 | . . . . . . . . . . . . . . . 31 . . . . . . . . . . . . . Parts Recycled . | . . . . . . . . . . . . . . . . . . . . . . . . . . . . . Recycled Matter . | . . . . . . . . . . . . . . . . . . . . . . . . . . . . . Retrieved Matter . | . . . . . . . . . . . . . . . . . . . . . . . . . . . . . Retrieved Components 12 | . 10 . . . . . . . . . . 2 . . . . . . . . . . . . . . . . Parts Scanalyzed . | . . . . . . . . . . . . . . . . . . . . . . . . . . . . . Part Schematics Acquired . | . . . . . . . . . . . . . . . . . . . . . . . . . . . . . Parts Damaged . | . . . . . . . . . . . . . . . . . . . . . . . . . . . . . Bothacking | -11 -10 -10 -10 -9 -8 -7 -7 -7 -7 -6 -6 -6 -5 -5 -4 -4 -4 -4 -3 -3 -2 -2 -2 -2 -1 -1 -1 -1 ------------ Run | Yrd Mat Min Exi Min Mat Fac Gar Fac Gar Fac Gar Fac Fac Gar Fac Gar Fac Gar Res Gar Res Gar Res Gar Acc Gar Acc Com Used RIF Installer 13 | . . . . . . . 1 . 1 . 2 . . 1 . 2 . 1 . 1 . 1 . 2 . 1 . . Coupler Efficiency 3 | . . . . . . . . . . . . . . . . . . 1 . . . . . 1 . 1 . . Code Merge 1 | . . . . . . . . . . . . . . . . . . . . . . . . 1 . . . . Command Fork 2 | . . . . . . . . . . . . . . . . 1 . . . . . 1 . . . . . . Signal Jammer 1 | . . . . . . . . . . . . . . 1 . . . . . . . . . . . . . . Zone Cloak 1 | . . . . . . . . . . . 1 . . . . . . . . . . . . . . . . . Robot Detection 1 | . . . . . . . . . 1 . . . . . . . . . . . . . . . . . . . Watcher Feeds 1 | . . . . . . . . . . . 1 . . . . . . . . . . . . . . . . . Structural Interface 1 | . . . . . . . . . . . . . . . . . . . . 1 . . . . . . . . Autooverride 1 | . . . . . . . . . . . . . . . . 1 . . . . . . . . . . . . Robots Hacked 204 | . . . . . . . . 6 8 3 7 2 1 13 4 1 3 9 10 5 . 26 4 11 29 32 11 19 Non-combat 20 | . . . . . . . . 3 . 3 . 1 1 . 2 . 1 . 2 . . . 1 . 3 1 1 1 Combat 184 | . . . . . . . . 3 8 . 7 1 . 13 2 1 2 9 8 5 . 26 3 11 26 31 10 18 Autooverrided 26 | . . . . . . . . . . . . . . . . . . 2 . . . 6 . 1 10 3 1 3 Robot Hacks Applied 195 | . . . . . . . . 6 8 3 8 2 1 15 4 1 3 10 13 5 . 26 5 10 19 30 10 16 parse_system 9 | . . . . . . . . . . . 1 . . . . . . 2 . . . 2 1 . 1 1 . 1 map_walls 2 | . . . . . . . . 1 . . . . . . . . . . . . . . 1 . . . . . drop_inventory 6 | . . . . . . . . . . 2 . 1 . . . . 1 . . . . . . . 2 . . . find_recycling 2 | . . . . . . . . . . . . . . . . . . . 2 . . . . . . . . . ignore_parts 2 | . . . . . . . . . . . . . . . 1 . . . . . . . . . 1 . . . summon_haulers 1 | . . . . . . . . . . 1 . . . . . . . . . . . . . . . . . . map_route 1 | . . . . . . . . . . . . . . . . . . . . . . . . . . . 1 . mark_security 3 | . . . . . . . . 1 . . . . 1 . . . . . 1 . . . . . . . . . redirect_shields 1 | . . . . . . . . 1 . . . . . . . . . . . . . . . . . . . . reboot_propulsion 1 | . . . . . . . . . . . . . . . . . . . . . . 1 . . . . . . scatter_targeting 2 | . . . . . . . . . . . . . . . . . . 1 . . . 1 . . . . . . overload_power 2 | . . . . . . . . . . . . . . . . . . . 1 1 . . . . . . . . amplify_resonance 5 | . . . . . . . . 2 . . . . . 1 1 1 . . . . . . . . . . . . wipe_record 1 | . . . . . . . . . . . . . . . . . . . . . . 1 . . . . . . disable_weapons 2 | . . . . . . . . . . . . . . 1 . . . . . . . 1 . . . . . . reboot_system 5 | . . . . . . . . . 1 . . . . 1 . . . . . . . . . . 1 1 . 1 go_dormant 1 | . . . . . . . . . . . . . . . . . . . . 1 . . . . . . . . overwrite_iff 34 | . . . . . . . . 1 4 . 3 . . 6 . . . 3 4 . . 10 . 1 . 2 . . streamctrl_high 2 | . . . . . . . . . . . 1 . . . . . . . . . . . . . . 1 . . formatsys_high 107 | . . . . . . . . . 3 . 3 . . 6 1 . 2 4 4 3 . 10 3 8 12 25 9 14 formatsys_deep 6 | . . . . . . . . . . . . 1 . . 1 . . . 1 . . . . 1 2 . . . Relay Couplers Released 159 | . . . . . . . 24 . 17 . 18 . . 10 . 8 . 10 . 9 . 15 . 26 . 22 . . Machine Destruction 152 | . . . . . . . 20 . 14 . 18 . . 10 . 8 . 10 . 9 . 15 . 26 . 22 . . Programmers 7 | . . . . . . . 4 . 3 . . . . . . . . . . . . . . . . . . . Attached 85 | . . . . . . . 1 2 7 . 9 1 . 9 2 5 . 4 3 3 . 10 2 12 5 8 . 2 Merged Code Value 419 | . . . . . . . . . . . . . . . . . . . . . . . . 162 . 257 . . Fabnet Peak Effective % . | . . . . . . . . . . . . . . . . . . . . . . . . . . . . . Robots Rewired 33 | . . . . . . . 8 . 3 . 4 . . 6 1 . . . . 2 . . . 3 . 6 . . Allies Hacked 16 | . . . . . . . . . . . . . . . . . . 1 2 1 . . 2 1 4 2 1 2 Hacks Repelled . | . . . . . . . . . . . . . . . . . . . . . . . . . . . . . Allies | -11 -10 -10 -10 -9 -8 -7 -7 -7 -7 -6 -6 -6 -5 -5 -4 -4 -4 -4 -3 -3 -2 -2 -2 -2 -1 -1 -1 -1 -------- Run | Yrd Mat Min Exi Min Mat Fac Gar Fac Gar Fac Gar Fac Fac Gar Fac Gar Fac Gar Res Gar Res Gar Res Gar Acc Gar Acc Com Total Allies 276 | . . 4 . . . . 10 1 12 . 11 4 3 16 3 . 2 11 11 6 . 29 4 22 37 50 13 27 Largest Group 28 | . . 4 4 3 3 . 8 2 5 5 5 8 3 5 6 . 2 3 4 6 5 8 3 12 13 27 28 26 Highest-Rated Group 1951 | . . 71 71 40 40 . 259 42 242 242 372 412 152 271 403 . 94 161 224 255 199 345 183 660 843 1672 1684 1951 Highest-Rated Ally 219 | . . 31 31 16 16 . 95 29 95 95 119 119 101 99 142 . 47 58 64 56 47 69 183 148 89 219 219 219 Total Orders 31 | . . . . . . . . . . . 2 . . 2 9 . . 5 4 2 . 2 2 1 . 1 1 . STAY 15 | . . . . . . . . . . . 1 . . 1 4 . . 2 2 1 . 1 1 . . 1 1 . FOLLOW 14 | . . . . . . . . . . . 1 . . 1 5 . . 1 2 1 . 1 1 1 . . . . EXPLORE 2 | . . . . . . . . . . . . . . . . . . 2 . . . . . . . . . . Ally Attacks 1597 | . . . . 2 37 . 28 10 40 15 48 117 8 70 71 . 11 54 37 16 . 122 23 97 162 292 161 176 Total Damage 58014 | . . . . 17 444 . 1205 167 735 466 1736 3798 794 1407 2856 . 296 1868 1310 535 . 3011 1540 3410 9467 8363 6628 7961 Kills 310 | . . . . 1 7 . 9 2 7 4 13 39 4 7 18 . 1 6 8 4 . 19 . 16 53 37 29 26 Allies Corrupted 18 | . . . . . . . . . . . . . . . 1 . . . 2 1 . . . 2 5 3 1 3 Allies Melted . | . . . . . . . . . . . . . . . . . . . . . . . . . . . . . Intel | -11 -10 -10 -10 -9 -8 -7 -7 -7 -7 -6 -6 -6 -5 -5 -4 -4 -4 -4 -3 -3 -2 -2 -2 -2 -1 -1 -1 -1 ------- Run | Yrd Mat Min Exi Min Mat Fac Gar Fac Gar Fac Gar Fac Fac Gar Fac Gar Fac Gar Res Gar Res Gar Res Gar Acc Gar Acc Com Active Infowar (turns) 22071 | . 943 648 . . 2367 810 1689 . . . . . 522 2113 911 558 939 1917 222 973 91 363 450 2223 1326 1768 743 495 Optics 18470 | . . . . . 2027 810 1689 . . . . . 522 2113 911 558 939 1917 222 . . . 207 2223 1326 1768 743 495 Terrain 74 | . 74 . . . . . . . . . . . . . . . . . . . . . . . . . . . Structural 3137 | . . . . . 2366 771 . . . . . . . . . . . . . . . . . . . . . . Seismic 2008 | . 869 648 . . 491 . . . . . . . . . . . . . . . . . . . . . . . T.N.C. 82 | . . . . . . . . . . . . . . . . . . . . . . . 82 . . . . . Cloaking 2776 | . . . . . . . . . . . . . . . . . . . . 973 91 363 307 757 285 . . . Robot Analysis Total 2 | . 2 . . . . . . . . . . . . . . . . . . . . . . . . . . . Derelict Logs Recovered 4 | . . 2 . 2 . . . . . . . . . . . . . . . . . . . . . . . . Drone Launches 2 | . . . . . . . . . . . . . . . . . . 2 . . . . . . . . . . Drone Recoveries 1 | . . . . . . . . . . . . . . . . . . 1 . . . . . . . . . . Exploration | -11 -10 -10 -10 -9 -8 -7 -7 -7 -7 -6 -6 -6 -5 -5 -4 -4 -4 -4 -3 -3 -2 -2 -2 -2 -1 -1 -1 -1 ------------- Run | Yrd Mat Min Exi Min Mat Fac Gar Fac Gar Fac Gar Fac Fac Gar Fac Gar Fac Gar Res Gar Res Gar Res Gar Acc Gar Acc Com Turns Passed 31957 | 143 1141 836 319 460 2368 810 2057 922 1525 219 1941 987 732 2113 911 558 939 1917 903 1059 91 1590 816 2223 1349 1768 760 500 Spaces Moved 14925 | 75 518 608 232 333 883 352 991 396 696 86 795 469 339 916 456 264 464 849 428 438 52 846 335 913 668 947 385 191 Core 7 | 2 . . . . . . . . . . . . . . . . . . . . . . . . . . . 5 Treads 11676 | 69 333 . . . 776 352 384 183 1 49 574 469 339 916 456 264 464 849 428 438 52 846 335 913 668 947 385 186 Legs . | . . . . . . . . . . . . . . . . . . . . . . . . . . . . . Wheels 3242 | 4 185 608 232 333 107 . 607 213 695 37 221 . . . . . . . . . . . . . . . . . Hover . | . . . . . . . . . . . . . . . . . . . . . . . . . . . . . Flight . | . . . . . . . . . . . . . . . . . . . . . . . . . . . . . Fastest Speed 50 | 50 115 115 130 130 145 200 110 150 110 175 165 165 160 160 158 158 150 150 160 152 150 150 145 145 150 160 160 50 Average Speed 166 | 152 181 129 130 131 181 223 159 187 154 234 202 175 160 160 163 158 167 161 160 154 150 150 159 189 162 162 162 157 Slowest Speed 305 | 160 240 145 130 145 240 240 280 226 280 280 280 245 160 160 240 158 238 305 160 245 150 150 237 225 240 163 163 250 Overloaded Moves . | . . . . . . . . . . . . . . . . . . . . . . . . . . . . . Propulsion Burnouts . | . . . . . . . . . . . . . . . . . . . . . . . . . . . . . Robots Hopped 1 | . . . . . . . . . . . . . . . . . . . . . . . . 1 . . . . Potential Cave-ins 25 | . . . . . . . . 4 . . . 2 2 . . . . 4 . 7 . . 6 . . . . . Cave-ins Triggered 2 | . . . . . . . . . . . . . 2 . . . . . . . . . . . . . . . Exploration Rate (%) 49 | 6 93 98 61 83 80 9 95 11 94 4 97 20 15 74 15 49 22 88 18 33 2 95 19 92 27 92 16 19 Regions Visited 28 Branch Regions 4 Pre-discovered Areas 5 | . 2 2 . 1 . . . . . . . . . . . . . . . . . . . . . . . . Known Exits Taken 10 | . . . . . . 1 . 1 . 1 . . 1 . 1 . 1 . 1 . 1 . 1 . 1 . . . Unknown Exits Taken 8 | 1 1 1 1 1 1 . . . . . . 1 . . . . . . . . . . . . . . 1 . Scrap Searched 3 | . . 1 . 2 . . . . . . . . . . . . . . . . . . . . . . . . Spaces Dug 193 | . 7 . . . 2 . . 7 . . . . 8 6 2 9 24 35 7 46 . 1 11 9 8 5 5 1 Terrain Destroyed 1079 | . 85 9 . 23 34 . 52 7 25 . 135 131 19 26 36 130 29 92 37 63 . 6 38 72 13 7 9 1 Melee 57 | . . . . . 2 . . 7 . . . . . 4 2 3 13 9 7 10 . . . . . . . . Projectile 152 | . . . . . 2 . . . 1 . 3 . 19 8 . . 1 . . 20 . 6 21 41 13 7 9 1 AOE 870 | . 85 9 . 23 30 . 52 . 24 . 132 131 . 14 34 127 15 83 30 33 . . 17 31 . . . . Terrain Rammed . | . . . . . . . . . . . . . . . . . . . . . . . . . . . . . Walls Destroyed . | . . . . . . . . . . . . . . . . . . . . . . . . . . . . . Machines Disabled . | . . . . . . . . . . . . . . . . . . . . . . . . . . . . . Actions | -11 -10 -10 -10 -9 -8 -7 -7 -7 -7 -6 -6 -6 -5 -5 -4 -4 -4 -4 -3 -3 -2 -2 -2 -2 -1 -1 -1 -1 --------- Run | Yrd Mat Min Exi Min Mat Fac Gar Fac Gar Fac Gar Fac Fac Gar Fac Gar Fac Gar Res Gar Res Gar Res Gar Acc Gar Acc Com Total 20138 | 94 616 648 250 351 1530 381 1332 511 1003 96 1030 614 486 1385 593 340 579 1235 579 738 65 1123 524 1236 820 1146 496 337 Wait 2204 | . 18 22 15 1 487 . 49 41 99 . 49 110 87 252 75 7 41 157 56 157 10 163 48 63 16 69 68 44 Move 14902 | 74 517 607 231 332 882 351 990 396 695 86 794 468 339 915 456 263 464 848 427 437 52 845 335 910 667 946 384 191 Hop 1 | . . . . . . . . . . . . . . . . . . . . . . . . 1 . . . . Pick Up 299 | 8 10 8 2 5 26 11 21 8 18 . 21 3 7 18 12 5 8 23 6 11 1 12 7 25 9 12 2 . Fast Attach 93 | 5 1 . . . . . 4 1 5 1 3 1 2 3 2 1 3 8 5 9 . 2 9 6 11 6 3 2 Attach 164 | . 5 1 . 1 8 3 5 1 12 . 14 3 5 5 9 2 3 18 6 8 2 9 12 10 12 4 . 6 Detach 56 | . . . . . . . 1 . . . 8 . 4 1 1 . 4 13 3 6 . 3 8 2 1 1 . . Swap 344 | . 6 3 . 3 28 5 39 12 25 1 23 10 11 26 10 9 11 27 5 14 . 9 22 25 8 8 . 4 Drop 219 | . 2 1 2 5 27 10 23 8 8 1 23 2 3 10 3 3 8 23 2 12 . 6 11 15 1 8 1 1 Fire 1215 | 7 57 6 . 4 61 . 57 37 55 4 43 15 26 93 22 42 10 56 39 47 . 67 71 117 84 77 37 81 Melee 332 | . . . . . 9 . 45 7 28 3 35 1 . 45 3 8 26 62 29 26 . . . . . 4 . 1 Ram 1 | . . . . . . . . . . . . . . . . . . . . . . . . . . . . 1 Kick . | . . . . . . . . . . . . . . . . . . . . . . . . . . . . . Crush 23 | . . . . . 2 1 . . . . 3 1 2 3 . . 1 . . 1 . . 1 . 6 . . 2 Escape Stasis 97 | . . . . . . . 28 . 46 . 2 . . . . . . . . . . 7 . 8 . 6 . . Rewire 188 | . . . . . . . 70 . 12 . 12 . . 14 . . . . 1 10 . . . 54 5 5 1 4 Trap . | . . . . . . . . . . . . . . . . . . . . . . . . . . . . . Miscellaneous . | . . . . . . . . . . . . . . . . . . . . . . . . . . . . . Route ------- -11/Scrapyard -10/Materials (discovered 5 exits: [*Mat x3] / [*Min x2]) -10/Mines (discovered 3 exits: [*Mat x2] / *Exi) -10/Exiles -9/Mines -8/Materials (discovered 3 exits: *Fac x3) -7/Factory -7/Garrison (discovered 3 exits: *Fac x3) -7/Factory (discovered 3 exits: *Fac / [*Low] / Gar) -7/Garrison (discovered 3 exits: *Fac x3) -6/Factory -6/Garrison (discovered 3 exits: *Fac x3) -6/Factory (discovered 2 exits: *Fac / [*Ext]) -5/Factory (discovered 2 exits: [*Upp] / Gar) -5/Garrison (discovered 3 exits: *Fac x3) -4/Factory -4/Garrison -4/Factory (discovered 3 exits: *Res / [*Upp] / Gar) -4/Garrison (discovered 3 exits: *Res x3) -3/Research -3/Garrison -2/Research -2/Garrison (discovered 3 exits: *Res x3) -2/Research -2/Garrison (discovered 3 exits: *Acc x3) -1/Access -1/Garrison (discovered 3 exits: [*Acc x3]) -1/Access -1/Command History --------- Turn | Location | Event 6 | -11/Scrapyard | Discovered new exit (range 15) 144 | -11/Scrapyard | Entered Materials 176 | -10/Materials | Discovered new exit (range 15) 307 | -10/Materials | Build established: Mutant 408 | -10/Materials | Discovered new exit (range 8) 621 | -10/Materials | Discovered new exit (range 8) 673 | -10/Materials | Discovered new exit (range 3) 898 | -10/Materials | Discovered new exit (range 12) 1106 | -10/Materials | Central database locked down 1285 | -10/Materials | Entered Mines 1459 | -10/Mines | YI-UF0 nonchalantly dropped a Grenade Launcher on the ground 1511 | -10/Mines | Discovered new exit (range 10) 1571 | -10/Mines | Learned location of Zion (-7) 1734 | -10/Mines | Learned location of Recycling (-9) 1745 | -10/Mines | Found a hidden stash of uninstalled traps 1941 | -10/Mines | Escorted by a lone wolf Derelict 1957 | -10/Mines | Deemed a non-threat by the Exiles lab entrance 1957 | -10/Mines | Discovered new exit (range 5) 2018 | -10/Mines | Discovered new exit (range 8) 2039 | -10/Mines | Assisted by bots powering up and referring to "LRC-V3" 2121 | -10/Mines | Entered Exiles 2121 | -10/Exiles | Accompanied by 4 allies 2153 | -10/Exiles | Met 8R-AWN 2185 | -10/Exiles | Met EX-HEX 2222 | -10/Exiles | Met EX-BIN 2251 | -10/Exiles | Aligned with FarCom system 2252 | -10/Exiles | Given EX-Vault access code 2285 | -10/Exiles | Opened EX-Vault 2293 | -10/Exiles | Found Trap Reconfigurator 2317 | -10/Exiles | Warned to stay clear of 0b10 Research branches 2363 | -10/Exiles | Met EX-DEC 2425 | -10/Exiles | Discovered new exit (range 10) 2440 | -10/Exiles | Left Exiles lab with Trap Reconfigurator 2440 | -10/Exiles | Entered Mines 2440 | -9/Mines | Accompanied by 3 allies 2593 | -9/Mines | A weapon hastily lodged in a ceiling crevice suddenly fell to the ground 2665 | -9/Mines | Learned location of Storage (-9) 2853 | -9/Mines | Discovered new exit (range 9) 2900 | -9/Mines | Entered Materials 2900 | -8/Materials | Accompanied by 3 allies 2900 | -8/Materials | Evolved 4 slots: Propulsion x1, Utility x3 3087 | -8/Materials | Central database locked down 3092 | -8/Materials | Discovered new exit (range 5) 3656 | -8/Materials | Discovered new exit (range 5) 3703 | -8/Materials | Build established: Scavenger-Skirmisher 4016 | -8/Materials | Discovered new exit (range 5) 5268 | -8/Materials | Entered Factory 5268 | -7/Factory | Evolved 2 slots: Utility x1, Weapon x1 5659 | -7/Factory | Build established: Skirmisher 6040 | -7/Factory | Identified exit to Garrison 6078 | -7/Factory | Entered Garrison 6107 | -7/Garrison | Installed Relay Interface Framework 6156 | -7/Garrison | Triggered checkpoint 6215 | -7/Garrison | Garrison Relay disabled 6330 | -7/Garrison | Triggered checkpoint 6330 | -7/Garrison | Triggered checkpoint 6420 | -7/Garrison | Discovered new exit (range 19) 6510 | -7/Garrison | Triggered checkpoint 6555 | -7/Garrison | Garrison Relay disabled 6616 | -7/Garrison | Triggered checkpoint 6641 | -7/Garrison | Discovered new exit (range 19) 6786 | -7/Garrison | Triggered checkpoint 6829 | -7/Garrison | Garrison Relay disabled 7180 | -7/Garrison | Found embedded Infiltrators 7378 | -7/Garrison | Triggered checkpoint 7428 | -7/Garrison | Discovered new exit (range 13) 7450 | -7/Garrison | Lost 6 allies 7581 | -7/Garrison | P-60 Hacker assimilated allied B2-EYP(x) 7616 | -7/Garrison | Triggered checkpoint 7722 | -7/Garrison | Triggered checkpoint 7886 | -7/Garrison | Garrison Relay disabled 7932 | -7/Garrison | Triggered checkpoint 8022 | -7/Garrison | Garrison Relay disabled 8135 | -7/Garrison | Entered Factory 8135 | -7/Factory | Accompanied by 2 allies 8190 | -7/Factory | Build established: Bothacker-Mutant 8203 | -7/Factory | Discovered new exit (range 8) 8288 | -7/Factory | Discovered new exit (range 12) 8535 | -7/Factory | First assault squad dispatched 8852 | -7/Factory | Build established: Bothacker-Skirmisher 9057 | -7/Factory | Identified exit to Garrison 9057 | -7/Factory | Entered Garrison 9291 | -7/Garrison | Triggered checkpoint 9318 | -7/Garrison | Garrison Relay disabled 9479 | -7/Garrison | Triggered checkpoint 9482 | -7/Garrison | Triggered checkpoint 9489 | -7/Garrison | Triggered checkpoint 9517 | -7/Garrison | Destroyed 8 combat bots 9551 | -7/Garrison | Lost 8 parts (1p3n2u2w) 9596 | -7/Garrison | Lost 3 parts (1n2w) 9707 | -7/Garrison | Triggered checkpoint 9812 | -7/Garrison | Garrison Relay disabled 9854 | -7/Garrison | Discovered new exit (range 8) 9969 | -7/Garrison | Expanded RIF knowledge: Robot Detection 10011 | -7/Garrison | Triggered checkpoint 10038 | -7/Garrison | Garrison Relay disabled 10096 | -7/Garrison | Build established: Bothacker-Mutant 10148 | -7/Garrison | Found Imp. Powered Armor 10299 | -7/Garrison | Discovered new exit (range 8) 10435 | -7/Garrison | Triggered checkpoint 10451 | -7/Garrison | Found embedded Infiltrators 10483 | -7/Garrison | Garrison Relay disabled 10534 | -7/Garrison | Discovered new exit (range 14) 10582 | -7/Garrison | Entered Factory 10582 | -6/Factory | Accompanied by 5 allies 10582 | -6/Factory | Evolved 2 slots: Utility x2 10765 | -6/Factory | Garrison activated, responded to threat 10801 | -6/Factory | Identified exit to Garrison 10801 | -6/Factory | Entered Garrison 10801 | -6/Garrison | Accompanied by 5 allies 10881 | -6/Garrison | Triggered checkpoint 10922 | -6/Garrison | Garrison Relay disabled 10968 | -6/Garrison | Phase Generator disabled 10985 | -6/Garrison | Garrison Relay disabled 11083 | -6/Garrison | Spotted B-75 Beast 11099 | -6/Garrison | Hijacked Beast 5a control node with streamctrl_high 11128 | -6/Garrison | Destroyed Beast 5a 11144 | -6/Garrison | Found Relay Coupler [Proto] 11147 | -6/Garrison | Found Relay Coupler [Proto] 11150 | -6/Garrison | Found Relay Coupler [Proto] 11231 | -6/Garrison | Triggered checkpoint 11481 | -6/Garrison | Triggered checkpoint 11491 | -6/Garrison | Garrison Relay disabled 11544 | -6/Garrison | Discovered new exit (range 6) 11711 | -6/Garrison | Spotted B-75 Beast 11728 | -6/Garrison | Build established: Bothacker-Tank 11915 | -6/Garrison | Triggered checkpoint 11949 | -6/Garrison | Triggered checkpoint 12123 | -6/Garrison | Triggered checkpoint 12234 | -6/Garrison | Expanded RIF knowledge: Watcher Feeds 12259 | -6/Garrison | Garrison Relay disabled 12323 | -6/Garrison | Expanded RIF knowledge: Zone Cloak 12401 | -6/Garrison | Discovered new exit (range 10) 12531 | -6/Garrison | Garrison Relay disabled 12547 | -6/Garrison | Triggered checkpoint 12601 | -6/Garrison | Discovered new exit (range 12) 12617 | -6/Garrison | Rewired Executioner 12622 | -6/Garrison | Rewired Executioner 12625 | -6/Garrison | Build established: Botlord-Tank 12742 | -6/Garrison | Entered Factory 12742 | -6/Factory | Accompanied by 5 allies 12888 | -6/Factory | Fabricated Adv. Remote Datajack (x2) 13089 | -6/Factory | Garrison activated, responded to threat 13092 | -6/Factory | First assault squad dispatched 13201 | -6/Factory | Assimilated Heavy ARC 5a with formatsys_deep 13239 | -6/Factory | Discovered new exit (range 14) 13451 | -6/Factory | Garrison activated, responded to threat 13465 | -6/Factory | High security lockdown imminent 13545 | -6/Factory | High security lockdown engaged 13565 | -6/Factory | Build established: Botlord-Mutant 13661 | -6/Factory | Discovered new exit (range 13) 13665 | -6/Factory | Destroyed 18 combat bots 13729 | -6/Factory | Entered another Factory area 13729 | -5/Factory | Accompanied by 2 allies 13729 | -5/Factory | Evolved 2 slots: Power x1, Propulsion x1 13810 | -5/Factory | Found Imp. Powered Armor 13914 | -5/Factory | Fabricated B-60 Warrior (x3) 13932 | -5/Factory | Found Prototype Device 13932 | -5/Factory | Identified Adv. Kinecellerator 13937 | -5/Factory | Found Prototype Processor 13941 | -5/Factory | Identified Exp. Core Analyzer 14289 | -5/Factory | Discovered new exit (range 30) 14319 | -5/Factory | Crushed by falling debris 14320 | -5/Factory | Crushed by falling debris 14329 | -5/Factory | First assault squad dispatched 14461 | -5/Factory | Identified exit to Garrison 14461 | -5/Factory | Entered Garrison 14493 | -5/Garrison | Triggered checkpoint 14587 | -5/Garrison | Garrison Relay disabled 14691 | -5/Garrison | Triggered checkpoint 14754 | -5/Garrison | Discovered new exit (range 11) 14817 | -5/Garrison | Triggered checkpoint 14857 | -5/Garrison | Garrison Relay disabled 15221 | -5/Garrison | Triggered checkpoint 15544 | -5/Garrison | Discovered new exit (range 13) 15665 | -5/Garrison | Triggered checkpoint 15687 | -5/Garrison | Garrison Relay disabled 15719 | -5/Garrison | Discovered new exit (range 72) 15719 | -5/Garrison | Discovered new exit (range 30) 15719 | -5/Garrison | Discovered new exit (range 40) 15830 | -5/Garrison | Triggered checkpoint 15853 | -5/Garrison | Triggered checkpoint 15888 | -5/Garrison | Lost 3 allies 16047 | -5/Garrison | Expanded RIF knowledge: Signal Jamming 16446 | -5/Garrison | Spotted Striker 16446 | -5/Garrison | Spotted Striker 16464 | -5/Garrison | Assimilated Striker with formatsys_high 16471 | -5/Garrison | Allies destroyed Striker 16574 | -5/Garrison | Entered Factory 16574 | -4/Factory | Accompanied by 5 allies 16574 | -4/Factory | Evolved 2 slots: Power x1, Utility x1 16700 | -4/Factory | Repaired Imp. Heavy Treads 16824 | -4/Factory | First assault squad dispatched 17165 | -4/Factory | Assimilated Heavy ARC 7a with formatsys_deep 17267 | -4/Factory | Lost 4 allies 17485 | -4/Factory | Identified exit to Garrison 17485 | -4/Factory | Entered Garrison 17507 | -4/Garrison | Garrison Relay disabled 17577 | -4/Garrison | Triggered checkpoint 17601 | -4/Garrison | Garrison Relay disabled 17652 | -4/Garrison | Expanded RIF knowledge: Autooverride 17658 | -4/Garrison | Phase Generator disabled 17709 | -4/Garrison | Spotted B-86 Titan 17770 | -4/Garrison | Triggered checkpoint 17802 | -4/Garrison | Destroyed 9 combat bots 17853 | -4/Garrison | Triggered checkpoint 17881 | -4/Garrison | Lost 3 parts (1p1u1w) 17982 | -4/Garrison | Discovered new exit (range 8) 17996 | -4/Garrison | Expanded RIF knowledge: Command Fork 18043 | -4/Garrison | Entered Factory 18283 | -4/Factory | Build established: Scavenger-Mutant 18289 | -4/Factory | Discovered new exit (range 8) 18793 | -4/Factory | First assault squad dispatched 18910 | -4/Factory | Discovered new exit (range 8) 18967 | -4/Factory | Build established: Botlord-Mutant 18982 | -4/Factory | Identified exit to Garrison 18982 | -4/Factory | Entered Garrison 18982 | -4/Garrison | Accompanied by 1 ally 19290 | -4/Garrison | Triggered checkpoint 19341 | -4/Garrison | Garrison Relay disabled 19590 | -4/Garrison | Spotted B-86 Titan 19644 | -4/Garrison | Triggered checkpoint 19716 | -4/Garrison | Triggered checkpoint 19791 | -4/Garrison | Lost 4 allies 19847 | -4/Garrison | Discovered new exit (range 10) 19888 | -4/Garrison | Triggered checkpoint 19902 | -4/Garrison | Garrison Relay disabled 20049 | -4/Garrison | Triggered checkpoint 20064 | -4/Garrison | Triggered checkpoint 20111 | -4/Garrison | Lost 3 parts (2p1w) 20291 | -4/Garrison | Destroyed B-86 Titan 20336 | -4/Garrison | Triggered checkpoint 20459 | -4/Garrison | Garrison Relay disabled 20496 | -4/Garrison | Discovered new exit (range 22) 20578 | -4/Garrison | Expanded RIF knowledge: Coupler Efficiency 20734 | -4/Garrison | Discovered new exit (range 8) 20899 | -4/Garrison | Entered Research 20899 | -3/Research | Evolved 2 slots: Utility x2 21112 | -3/Research | P-80 Master assimilated allied Warden 8a 21138 | -3/Research | Found Prototype Device 21138 | -3/Research | Identified Exp. Thermal Shield 21141 | -3/Research | Found Exp. Thermal Shield 21149 | -3/Research | First assault squad dispatched 21152 | -3/Research | Lost 3 parts (3u) 21359 | -3/Research | Assimilated Heavy ARC 8a with formatsys_deep 21366 | -3/Research | P-80 Master assimilated allied Assassin 8b 21418 | -3/Research | Lost 3 allies 21788 | -3/Research | Identified exit to Garrison 21802 | -3/Research | Entered Garrison 21843 | -3/Garrison | Spotted B-86 Titan 21859 | -3/Garrison | Found Adv. Force Booster 22027 | -3/Garrison | Destroyed 9 combat bots 22062 | -3/Garrison | Triggered checkpoint 22136 | -3/Garrison | Garrison Relay disabled 22414 | -3/Garrison | Triggered checkpoint 22476 | -3/Garrison | Expanded RIF knowledge: Structural Interface 22493 | -3/Garrison | Discovered new exit (range 15) 22567 | -3/Garrison | Garrison Relay disabled 22592 | -3/Garrison | Triggered checkpoint 22861 | -3/Garrison | Entered Research 22861 | -2/Research | Accompanied by 5 allies 22861 | -2/Research | Evolved 2 slots: Propulsion x1, Utility x1 22942 | -2/Research | Identified exit to Garrison 22952 | -2/Research | Entered Garrison 22952 | -2/Garrison | Accompanied by 5 allies 23113 | -2/Garrison | Garrison Relay disabled 23194 | -2/Garrison | Triggered checkpoint 23308 | -2/Garrison | Triggered checkpoint 23320 | -2/Garrison | Spotted B-90 Cyclops 23327 | -2/Garrison | Triggered checkpoint 23336 | -2/Garrison | Triggered checkpoint 23356 | -2/Garrison | Allies destroyed B-90 Cyclops 23374 | -2/Garrison | Triggered checkpoint 23416 | -2/Garrison | Lost 11 allies 23455 | -2/Garrison | Garrison Relay disabled 23502 | -2/Garrison | Discovered new exit (range 11) 23549 | -2/Garrison | Spotted Striker 23550 | -2/Garrison | Spotted Striker 23570 | -2/Garrison | Triggered checkpoint 23896 | -2/Garrison | Discovered new exit (range 10) 23899 | -2/Garrison | Lost 6 allies 23938 | -2/Garrison | Triggered checkpoint 23971 | -2/Garrison | Garrison Relay disabled 24011 | -2/Garrison | Expanded RIF knowledge: Command Fork 24216 | -2/Garrison | Triggered checkpoint 24341 | -2/Garrison | Discovered new exit (range 15) 24422 | -2/Garrison | Garrison Relay disabled 24510 | -2/Garrison | Build established: Botlord-Tank 24542 | -2/Garrison | Entered Research 24717 | -2/Research | Spotted B-90 Cyclops 24992 | -2/Research | System corruption reached 10% 25024 | -2/Research | Lost 6 parts (1p1n2u2w) 25349 | -2/Research | P-80 Master assimilated allied Swordsman 9a 25358 | -2/Research | Identified exit to Garrison 25358 | -2/Research | Entered Garrison 25358 | -2/Garrison | Accompanied by 1 ally 25530 | -2/Garrison | Garrison Relay disabled 25534 | -2/Garrison | Triggered checkpoint 25696 | -2/Garrison | Spotted B-90 Cyclops 25702 | -2/Garrison | Assimilated Cyclops 9a with formatsys_high 25706 | -2/Garrison | Triggered checkpoint 25708 | -2/Garrison | Triggered checkpoint 25718 | -2/Garrison | Triggered checkpoint 25759 | -2/Garrison | Lost 4 allies 25801 | -2/Garrison | Lost 8 parts (2p1n2u3w) 25873 | -2/Garrison | Destroyed 13 combat bots 26083 | -2/Garrison | Expanded RIF knowledge: Coupler Efficiency 26120 | -2/Garrison | Triggered checkpoint 26128 | -2/Garrison | Assimilated Heavy ARC 9a with formatsys_deep 26168 | -2/Garrison | Garrison Relay disabled 26215 | -2/Garrison | Discovered new exit (range 19) 26581 | -2/Garrison | Garrison Relay disabled 26708 | -2/Garrison | Lost 6 allies 26720 | -2/Garrison | Found Unknown Device 26720 | -2/Garrison | Identified Adv. Force Booster 26790 | -2/Garrison | Triggered checkpoint 26931 | -2/Garrison | Garrison Relay disabled 26954 | -2/Garrison | Garrison Relay disabled 27010 | -2/Garrison | Discovered new exit (range 11) 27174 | -2/Garrison | Discovered new exit (range 11) 27195 | -2/Garrison | Build established: Commander-Tank 27225 | -2/Garrison | Expanded RIF knowledge: Code Merge 27347 | -2/Garrison | Garrison Relay disabled 27518 | -2/Garrison | Spotted B-90 Cyclops 27581 | -2/Garrison | Entered Access 27581 | -1/Access | Accompanied by 8 allies 27581 | -1/Access | Evolved 2 slots: Utility x2 27711 | -1/Access | P-80 Master assimilated allied Terminator 9d 27725 | -1/Access | Garrison activated, responded to threat 27763 | -1/Access | Lost 5 allies 27764 | -1/Access | Lost 7 parts (3p1n1u2w) 27786 | -1/Access | Identified exit to Garrison 27831 | -1/Access | First assault squad dispatched 27986 | -1/Access | System corruption reached 10% 28015 | -1/Access | Build established: Scavenger-Tank 28023 | -1/Access | Lost 5 parts (1p1n1u2w) 28106 | -1/Access | Assimilated Heavy ARC 10a with formatsys_deep 28402 | -1/Access | Assimilated Heavy ARC 10b with formatsys_deep 28440 | -1/Access | Build established: Botlord-Skirmisher 28449 | -1/Access | Found Quantum Capacitor 28711 | -1/Access | Unchained authorized (CL-0N3) 28760 | -1/Access | Build established: Botlord-Tank 28776 | -1/Access | Lost 11 allies 28819 | -1/Access | Lost 3 allies 28843 | -1/Access | High security lockdown imminent 28923 | -1/Access | High security lockdown engaged 28930 | -1/Access | Entered Garrison 28930 | -1/Garrison | Accompanied by 12 allies 28950 | -1/Garrison | Triggered checkpoint 28974 | -1/Garrison | Triggered checkpoint 29018 | -1/Garrison | Garrison Relay disabled 29157 | -1/Garrison | Triggered checkpoint 29164 | -1/Garrison | Spotted B-99 Colossus 29180 | -1/Garrison | Triggered checkpoint 29180 | -1/Garrison | Triggered checkpoint 29182 | -1/Garrison | Lost 3 parts (1p1u1w) 29185 | -1/Garrison | Triggered checkpoint 29194 | -1/Garrison | Allies destroyed B-99 Colossus 29210 | -1/Garrison | Found Corrupted Multirail 29238 | -1/Garrison | Lost 17 allies 29424 | -1/Garrison | Triggered checkpoint 29456 | -1/Garrison | Discovered new exit (range 7) 29539 | -1/Garrison | Garrison Relay disabled 29561 | -1/Garrison | Garrison Relay disabled 29726 | -1/Garrison | Triggered checkpoint 29768 | -1/Garrison | Lost 4 allies 29855 | -1/Garrison | Found Unknown Hackware 29858 | -1/Garrison | Found Unknown Hackware 29859 | -1/Garrison | Identified Relay Coupler [Proto] (x2) 29864 | -1/Garrison | Lost 3 allies 29922 | -1/Garrison | Discovered new exit (range 8) 30051 | -1/Garrison | Build established: Botlord-Mutant 30058 | -1/Garrison | Triggered checkpoint 30095 | -1/Garrison | Expanded RIF knowledge: Coupler Efficiency 30111 | -1/Garrison | Garrison Relay disabled 30147 | -1/Garrison | Discovered new exit (range 12) 30332 | -1/Garrison | Triggered checkpoint 30352 | -1/Garrison | Garrison Relay disabled 30698 | -1/Garrison | Entered Access 30698 | -1/Access | Accompanied by 26 allies 30906 | -1/Access | Lost 4 allies 30948 | -1/Access | First assault squad dispatched 31060 | -1/Access | P-80 Master assimilated allied Plague 10r 31217 | -1/Access | Lost 5 allies 31314 | -1/Access | High security lockdown imminent 31356 | -1/Access | Spotted B-99 Colossus 31357 | -1/Access | Spotted B-99 Colossus 31359 | -1/Access | Assimilated Colossus 10a with formatsys_high 31360 | -1/Access | Assimilated Colossus 10b with formatsys_high 31394 | -1/Access | High security lockdown engaged 31406 | -1/Access | Discovered new exit (range 4) 31458 | -1/Access | Entered Command 31458 | -1/Command | Accompanied by 13 allies 31661 | -1/Command | High security lockdown imminent 31693 | -1/Command | Lost 4 allies 31741 | -1/Command | High security lockdown engaged 31765 | -1/Command | Spotted M Guard 31765 | -1/Command | Spotted M Guard 31765 | -1/Command | Spotted Combat Programmer 31776 | -1/Command | Combat Programmer assimilated allied Enforcer 10s 31776 | -1/Command | Spotted Combat Programmer 31776 | -1/Command | Assimilated M Guard with formatsys_high 31776 | -1/Command | Assimilated M Guard with formatsys_high 31777 | -1/Command | Combat Programmer assimilated allied Terminator 10l 31783 | -1/Command | Combat Programmer assimilated allied Plague 10*28 31798 | -1/Command | Allies destroyed Combat Programmer 31799 | -1/Command | Combat Programmer assimilated allied Enforcer 10y 31802 | -1/Command | Allies destroyed Combat Programmer 31802 | -1/Command | All MAIN.C guards destroyed 31874 | -1/Command | Lost 18 allies 31885 | -1/Command | Spotted Investigator 31892 | -1/Command | Assimilated Investigator with formatsys_high 31904 | -1/Command | P-80 Master assimilated allied Colossus 10a 31937 | -1/Command | P-80 Master assimilated allied Archangel 10b 31944 | -1/Command | Core integrity fell below 50% 31946 | -1/Command | System corruption reached 30% 31954 | -1/Command | Core integrity fell below 20% 31955 | -1/Command | Released all parts (5) 31958 | -1/Command | Destroyed by G-73 Enforcer with Heavy Laser Last Messages --------------- 31953_ Acquired 78 matter. 31953_ The unstable cave ceiling collapses. 31953_ K-01 Serf collects debris. 31953_ Relay Coupler [Brawler] destroyed. 31953_ Enh. Optical Array destroyed. 31953_ System corrupted by crushing effect (+3). 31954_ K:C1 DC6 OU##:HF>K3LUD5SZF 31954_ Penetrated by Slug. 31954_ P-80 Master resets L-61 Swordsman, system corruption cleaned. 31955_ Released Enh. Nova Cannon. 31955_ Released Graphene Brace. 31955_ Released Adv. Target Analyzer. 31955_ Released Huge Storage Unit. 31955_ Released Imp. Heavy Siege Treads. 31955_ Acquired 32 matter. 31956_ Knocked back. 31956_ Slug penetrates G-73 Enforcer. 31957_ K-01 Serf collects debris. 31958_ The unstable cave ceiling collapses. 31958_ Huge Storage Unit crushed. Map ----- +----------------------------------------------------+ | ?????????????????????????????????????????????????? | | ?????????????????????????????????????????????????? | | ???????????????????????? ????????????????????????? | | ?????????????????????? ????????????????????????? | | ?????????????????????? #???????????????????????? | | ?????????????????????? #???????????????????????? | | ?????????????????????? #???????????????????????? | | ?????????????????????? #???????????????????????? | | ?????????????????????? #???????????????????????? | | ?????????????????????? #???????????????????????? | | ?????????????????????? #???????????????????????? | | ?????????????????????# #???????????????????????? | | ?????????????????????? #???????????????????????? | | ?????????????????????? #???????????????????????? | | ?????????????????????? #???????????????????????? | | ?????????????????????? ?????###????????????????? | | ??????????????#"""##?## ###### ######?#####?????? | | ??????????????# * T#?# # # ### #?# #?????? | | ??????????????#///#### W W ## ### ####### | | ??????????????# + | | ??????????????# !% k % + | | ??????????????# %i [ R % % % + | | ??????????????# !/*hgiBB %% % + | | ??????????????# !=%!*pBB % [[%% / | | ??????????????# ##lbggbl# ## ### ##### | | ??????????????#######]lp=@## # #?# #???# | | ????????????????#!!!#pgg#l # # ###?#####???# | | ????????????????##!!!#g==*| ##???????????# | | ?????????????????# !#!%x##i ####????????????# | | ????????????????# ## #%]*i]# ##???????????????# | | ???????????????# # ##%]%#! ##????????????????# | | ???????????????###? ?%![=!! #?????????????????# | | ??????????????????# ?%!= ## #????????????????# | | ??????????????????## #% #?####????????????????# | | ????????????????????## %#?????????????????????# | | ?????????????????????#% "#?????????????????????### | | ?????????????????????#% d"???????????????????????? | | ?????????????????????#% #???????????????????????? | | ?????????????????????# %#???????????????????????? | | ?????????????????????# #???????????????????????? | | ?????????????????????#" =#??????????????????????? | | ?????????????????????#%d%#??????????????????????? | | ??????????????????????+++#??????????????????????? | | ?????????????????????? *% ??????????????????????? | | ??????????????????????"" #??????????????????????? | | ?????????????????????? # ????????????????????????# | | ?????????????????????? ? ????????????????????????? | | ?????????????????????????????????????????????????? | | ?????????????????????????????????????????????????? | | ?????????????????????????????????????????????????? | +----------------------------------------------------+ Best States ------------- Heat Dissipation 106 Energy Generation 59 Energy Capacity 800 Matter Stores 300 Matter Capacity 300 Sight Range 23 Terrain Scan Range 16 Terrain Scan Density 10 Cloak Strength 4 Armor Coverage 1650 Resistance: TH 30 Core Shielding 20 Weapon Cycling 20 Phase Shifting 15 Evasion (%) 55 Targeting Accuracy 8 Target Analysis 12 Recoil Reduction 5 Matter Filtering 50 Force Boost 40 Offensive Hacking 14 Defensive Hacking 14 Relay Coupler Types 10 Relay Coupler Value 521 Item Schematics ----------------- None Robot Schematics ------------------ None Fabricated ------------ Adv. Remote Datajack | x2 | -6/Factory | Preloaded B-60 Warrior | x3 | -5/Factory | Preloaded Repaired ---------- Imp. Heavy Treads | 13% | -4/Factory Studied --------- Wheel | -8/Materials | Hacked Com. Wheel | -8/Materials | Hacked Lgt. Treads | -7/Factory | Hacked Minigun | -7/Factory | Hacked Imp. Deuterium Engine | -7/Factory | Hacked Gauss Rifle | -7/Factory | Hacked Rocket Launcher | -7/Factory | Hacked Biometal Heavy Treads | -1/Access | Hacked Alien Tech Used ----------------- None Achievements -------------- Hackerman Most Wanted Powerful Protocols Pwned RIFT Wizard The Better Part Of Valor Versatile Challenges ------------ None Game ------ Seed RainbowMultinovaComputer Manual? 0 Play Time 05:53:09 Cumulative 319.3 hours Start 2025.12.20 @ 17:31:47 End 2025.12.21 @ 00:20:02 Sessions 1 Manual Loads 0 Difficulty Rogue Special Mode None Game No. 382 Rogue 382 Adventurer 0 Explorer 0 Win Type - Total 21 Types 13/0/3/1/1/0/1/1/0/1 Lore% 78 Gallery% 78 Achievement% 64 Wizard Run 0 Options --------- Layout 1 ASCII 0 Keyboard 1 Movement Numpad Keybinds 0 Fullscreen 2 Font 32/SmallcapsGlow Map View 77x35 Zoom Use 0% Tactical HUD 1 Map Filters NONE Filters NONE Steam 1 RUN: f2cac4fa-128f-4ee9-aa62-b72df8069d17